Workbook

Sheet Амортизація калорій
B1: ГРАФІК АМОРТИЗАЦІЇ КАЛОРІЙ
B2: =IFERROR(CONCATENATE("ЛИШЕ ",DATEDIF(ДатаПочатку,ЦільоваДата,"m")," МІСЯЦІ ТА ", DATEDIF(ДатаПочатку,ЦільоваДата,"md"),НомерДня),"") -> ЛИШЕ 3 МІСЯЦІ ТА 14 ДНІВ | H2: =IF(ЦільЩодоВаги="ЗМЕНШИЛАСЯ","Не рекомендовано зменшувати споживання калорій більш ніж на 1000 калорій нижче ваших щоденних потреб в калоріях або споживати менше " & IF(Стать="ЖІНКА","1200 калорій на день.","1800 калорій на день."),"") -> Не рекомендовано зменшувати споживання калорій більш ніж на 1000 калорій нижче ваших щоденних потреб в калоріях або споживати менше 1200 калорій на день.
B3: =IF(ЦільЩодоВаги="Підтримання",""," ДОКИ НЕ ДОСЯГНЕТЕ МЕТИ!") -> ДОКИ НЕ ДОСЯГНЕТЕ МЕТИ! | H3: =IF(ЦільЩодоВаги="Підтримання","",CONCATENATE("Цільова дата мети базується на рекомендованій середній ",IF(ЦільЩодоВаги="ЗМЕНШИЛАСЯ","втраті ","набуття "),"ваги ",IF(ОдиницяВимірювання="БРИТАНСЬКА","0,45 кг",".45 кг")," на тиждень.")) -> Цільова дата мети базується на рекомендованій середній втраті ваги 0,45 кг на тиждень.
B4: РІВЕНЬ ФІЗИЧНОЇ АКТИВНОСТІ | H4: СИСТЕМА ВИМІРЮВАННЯ | J4: ПОТОЧНА ВАГА | L4: ВІК
B5: ПОМІРНА АКТИВНІСТЬ | E5: =VLOOKUP(Рівень,ТипиВправ[],2,FALSE) -> ВПРАВИ 3–5 ДНІВ НА ТИЖДЕНЬ | H5: БРИТАНСЬКА | J5: 150.0 | L5: 34
B6: Я ХОЧУ, ЩОБ МОЯ ВАГА | H6: =IF(Звичайний,"ВИСОТА В ФУТАХ","ВИСОТА В М") -> ВИСОТА В ФУТАХ | I6: =IF(Звичайний,"ДЮЙМІВ","САНТИМЕТРІВ") -> ДЮЙМІВ | J6: БАЖАНА ВАГА | L6: СТАТЬ
B7: ЗМЕНШИЛАСЯ | H7: 5 | I7: 5.0 | J7: 135.0 | L7: ЖІНКА
B8: ДАТА ПОЧАТКУ | E8: ДАТА ДОСЯГНЕННЯ ЦІЛІ | H8: ПОЧАТКОВІ ЩОДЕННІ ПОТРЕБИ В КАЛОРІЯХ | J8: ПОЧАТКОВА ДЕННА КІЛЬКІСТЬ КАЛОРІЙ | L8: =IF(ЦільЩодоВаги="Збільшення","ПОТРІБНІ НАДЛИШКОВІ КАЛОРІЇ","КАЛОРІЇ, ЯКІ ПОТРІБНО ПОГАСИТИ") -> КАЛОРІЇ, ЯКІ ПОТРІБНО ПОГАСИТИ
B9: =TODAY()-5 -> 2022-08-14 | E9: =IF(ЦільЩодоВаги="Підтримання","",IF(AND(УсеВиконано,B12<>""),MAX(B11:B998),"Кінцева дата не може бути меншою за дату початку. Перевірте записи.")) -> 2022-11-28 | H9: =IF(УсеВиконано,BMR*ФакторАктивності,"") -> 2252 | J9: =IF(УсеВиконано,BMR*ФакторАктивності+IF(ЦільЩодоВаги="Підтримання",0,IF(ЦільЩодоВаги="ЗМЕНШИЛАСЯ",-500,IF(ЦільЩодоВаги="Збільшення",500))),"") -> 1752 | L9: =IF(ЦільЩодоВаги="Підтримання","",(ВагаДляСхудненняНабору)*IF(Звичайний,1,2.2)*3500) -> 52500
B10: ДАТА | C10: ТИЖДЕНЬ | D10: ДЕНЬ | E10: ВАГА | F10: ОСНОВНИЙ ОБМІН | G10: СПОЖИТО КАЛОРІЙ | H10: СПАЛЕНО КАЛОРІЙ | I10: =IF(ЦільЩодоВаги="Збільшення", "ДОДАТКОВІ КАЛОРІЇ","НЕСТАТОК КАЛОРІЙ") -> НЕСТАТОК КАЛОРІЙ | J10: ЗАЛИШОК КАЛОРІЙ | K10: =IF(ОдиницяВимірювання="БРИТАНСЬКА","ЗАЛИШИЛОСЯ ФУНТІВ","ЗАЛИШИЛОСЯ КІЛОГРАМІВ") -> ЗАЛИШИЛОСЯ ФУНТІВ | L10: =IF(ЦільЩодоВаги="Збільшення","НАБУТТЯ","ВТРАТА") -> ВТРАТА | M10: ВІДСОТОК МЕТИ
B11: =IFERROR(IF(Підтримання,"",ДатаПочатку), "") -> 2022-08-14 | C11: =IFERROR(IF(Підтримання,"",1), "") -> 1 | D11: =IFERROR(IF(AND(ISNUMBER(J11),J11>0),1,""), "") -> 1 | E11: =IFERROR(IF(Підтримання,"",Вага), "") -> 150.0 | F11: =IFERROR(IF(Підтримання,"",IF(E11>0,АктивнийBMR,"")), "") -> 1453 | G11: =IFERROR(IF(Підтримання,"",ПочатСпоживКалор), "") -> 1752 | H11: =IFERROR(F11*(ФакторАктивності),"") -> 2252 | I11: =IFERROR(IF(ЦільЩодоВаги="Збільшення",G11-H11,H11-G11),"") -> 500 | J11: =IFERROR(L9, "") -> 52500 | K11: =IFERROR(IF(Звичайний,J11/КалоріїНаФунт,J11/КалоріїНаФунт/2.2),"") -> 15.0 | L11: =IFERROR(ВагаДляСхудненняНабору-K11,"") -> 0.00 | M11: =IFERROR(IF(Підтримання,"",0%), "") -> 0%
B12: =IFERROR(IF(K11>0,B11+1,""),"") -> 2022-08-15 | C12: =IFERROR(IF(D12<>"",IF(MOD(D12,7)=1,(D11/7)+1,""),""),"") ->  | D12: =IFERROR(IF(K11>0,D11+1,""),"") -> 2 | E12: =IFERROR(IF($D12<>"",E11-(I11/КалоріїНаФунт),""),"") -> 149.9 | F12: =IFERROR(АктивнийBMR,"") -> 1453 | G12: =IFERROR(IF(K11>0,F11*ФакторАктивності+IF(ЦільЩодоВаги="Підтримання",0,IF(ЦільЩодоВаги="ЗМЕНШИЛАСЯ",-500,IF(ЦільЩодоВаги="Збільшення",500))),""),"") -> 1752 | H12: =IFERROR(F12*(ФакторАктивності),"") -> 2251 | I12: =IFERROR(IF(ЦільЩодоВаги="Збільшення",G12-H12,H12-G12),"") -> 499 | J12: =IFERROR(J11-I12,"") -> 52001 | K12: =IFERROR(IF(Звичайний,J12/КалоріїНаФунт,J12/КалоріїНаФунт/2.2),"") -> 14.9 | L12: =IFERROR(ВагаДляСхудненняНабору-K12,"") -> 0.14 | M12: =IFERROR(IF(B11<>"",L12/(ВагаДляСхудненняНабору),""),"") -> 1%
B13: 2022-08-16 | C13: =IFERROR(IF(D13<>"",IF(MOD(D13,7)=1,(D12/7)+1,""),""),"") ->  | D13: 3 | E13: 149.7 | F13: =IFERROR(АктивнийBMR,"") -> 1452 | G13: =IFERROR(IF(K12>0,F12*ФакторАктивності+IF(ЦільЩодоВаги="Підтримання",0,IF(ЦільЩодоВаги="ЗМЕНШИЛАСЯ",-500,IF(ЦільЩодоВаги="Збільшення",500))),""),"") -> 1751 | H13: =IFERROR(F13*(ФакторАктивності),"") -> 2251 | I13: =IFERROR(IF(ЦільЩодоВаги="Збільшення",G13-H13,H13-G13),"") -> 499 | J13: =IFERROR(J12-I13,"") -> 51502 | K13: =IFERROR(IF(Звичайний,J13/КалоріїНаФунт,J13/КалоріїНаФунт/2.2),"") -> 14.7 | L13: =IFERROR(ВагаДляСхудненняНабору-K13,"") -> 0.29 | M13: =IFERROR(IF(B12<>"",L13/(ВагаДляСхудненняНабору),""),"") -> 2%
B14: 2022-08-17 | D14: 4 | E14: 149.6 | F14: =IFERROR(АктивнийBMR,"") -> 1451 | G14: =IFERROR(IF(K13>0,F13*ФакторАктивності+IF(ЦільЩодоВаги="Підтримання",0,IF(ЦільЩодоВаги="ЗМЕНШИЛАСЯ",-500,IF(ЦільЩодоВаги="Збільшення",500))),""),"") -> 1751 | H14: =IFERROR(F14*(ФакторАктивності),"") -> 2250 | I14: =IFERROR(IF(ЦільЩодоВаги="Збільшення",G14-H14,H14-G14),"") -> 499 | J14: 51003 | K14: =IFERROR(IF(Звичайний,J14/КалоріїНаФунт,J14/КалоріїНаФунт/2.2),"") -> 14.6 | L14: =IFERROR(ВагаДляСхудненняНабору-K14,"") -> 0.43 | M14: =IFERROR(IF(B13<>"",L14/(ВагаДляСхудненняНабору),""),"") -> 3%
B15: 2022-08-18 | D15: 5 | E15: 149.4 | F15: =IFERROR(АктивнийBMR,"") -> 1451 | G15: =IFERROR(IF(K14>0,F14*ФакторАктивності+IF(ЦільЩодоВаги="Підтримання",0,IF(ЦільЩодоВаги="ЗМЕНШИЛАСЯ",-500,IF(ЦільЩодоВаги="Збільшення",500))),""),"") -> 1750 | H15: =IFERROR(F15*(ФакторАктивності),"") -> 2249 | I15: =IFERROR(IF(ЦільЩодоВаги="Збільшення",G15-H15,H15-G15),"") -> 499 | J15: 50504 | K15: =IFERROR(IF(Звичайний,J15/КалоріїНаФунт,J15/КалоріїНаФунт/2.2),"") -> 14.4 | L15: =IFERROR(ВагаДляСхудненняНабору-K15,"") -> 0.57 | M15: =IFERROR(IF(B14<>"",L15/(ВагаДляСхудненняНабору),""),"") -> 4%
B16: 2022-08-19 | D16: 6 | E16: 149.3 | F16: =IFERROR(АктивнийBMR,"") -> 1450 | G16: =IFERROR(IF(K15>0,F15*ФакторАктивності+IF(ЦільЩодоВаги="Підтримання",0,IF(ЦільЩодоВаги="ЗМЕНШИЛАСЯ",-500,IF(ЦільЩодоВаги="Збільшення",500))),""),"") -> 1749 | H16: =IFERROR(F16*(ФакторАктивності),"") -> 2248 | I16: =IFERROR(IF(ЦільЩодоВаги="Збільшення",G16-H16,H16-G16),"") -> 499 | J16: 50005 | K16: =IFERROR(IF(Звичайний,J16/КалоріїНаФунт,J16/КалоріїНаФунт/2.2),"") -> 14.3 | L16: =IFERROR(ВагаДляСхудненняНабору-K16,"") -> 0.71 | M16: =IFERROR(IF(B15<>"",L16/(ВагаДляСхудненняНабору),""),"") -> 5%
B17: 2022-08-20 | D17: 7 | E17: 149.1 | F17: =IFERROR(АктивнийBMR,"") -> 1449 | G17: =IFERROR(IF(K16>0,F16*ФакторАктивності+IF(ЦільЩодоВаги="Підтримання",0,IF(ЦільЩодоВаги="ЗМЕНШИЛАСЯ",-500,IF(ЦільЩодоВаги="Збільшення",500))),""),"") -> 1748 | H17: =IFERROR(F17*(ФакторАктивності),"") -> 2247 | I17: =IFERROR(IF(ЦільЩодоВаги="Збільшення",G17-H17,H17-G17),"") -> 499 | J17: 49506 | K17: =IFERROR(IF(Звичайний,J17/КалоріїНаФунт,J17/КалоріїНаФунт/2.2),"") -> 14.1 | L17: =IFERROR(ВагаДляСхудненняНабору-K17,"") -> 0.86 | M17: =IFERROR(IF(B16<>"",L17/(ВагаДляСхудненняНабору),""),"") -> 6%
B18: 2022-08-21 | C18: 2 | D18: 8 | E18: 149.0 | F18: =IFERROR(АктивнийBMR,"") -> 1449 | G18: =IFERROR(IF(K17>0,F17*ФакторАктивності+IF(ЦільЩодоВаги="Підтримання",0,IF(ЦільЩодоВаги="ЗМЕНШИЛАСЯ",-500,IF(ЦільЩодоВаги="Збільшення",500))),""),"") -> 1747 | H18: =IFERROR(F18*(ФакторАктивності),"") -> 2246 | I18: =IFERROR(IF(ЦільЩодоВаги="Збільшення",G18-H18,H18-G18),"") -> 499 | J18: 49007 | K18: =IFERROR(IF(Звичайний,J18/КалоріїНаФунт,J18/КалоріїНаФунт/2.2),"") -> 14.0 | L18: =IFERROR(ВагаДляСхудненняНабору-K18,"") -> 1.00 | M18: =IFERROR(IF(B17<>"",L18/(ВагаДляСхудненняНабору),""),"") -> 7%
B19: 2022-08-22 | D19: 9 | E19: 148.9 | F19: =IFERROR(АктивнийBMR,"") -> 1448 | G19: =IFERROR(IF(K18>0,F18*ФакторАктивності+IF(ЦільЩодоВаги="Підтримання",0,IF(ЦільЩодоВаги="ЗМЕНШИЛАСЯ",-500,IF(ЦільЩодоВаги="Збільшення",500))),""),"") -> 1746 | H19: =IFERROR(F19*(ФакторАктивності),"") -> 2245 | I19: =IFERROR(IF(ЦільЩодоВаги="Збільшення",G19-H19,H19-G19),"") -> 499 | J19: 48508 | K19: =IFERROR(IF(Звичайний,J19/КалоріїНаФунт,J19/КалоріїНаФунт/2.2),"") -> 13.9 | L19: =IFERROR(ВагаДляСхудненняНабору-K19,"") -> 1.14 | M19: =IFERROR(IF(B18<>"",L19/(ВагаДляСхудненняНабору),""),"") -> 8%
B20: 2022-08-23 | D20: 10 | E20: 148.7 | F20: =IFERROR(АктивнийBMR,"") -> 1448 | G20: =IFERROR(IF(K19>0,F19*ФакторАктивності+IF(ЦільЩодоВаги="Підтримання",0,IF(ЦільЩодоВаги="ЗМЕНШИЛАСЯ",-500,IF(ЦільЩодоВаги="Збільшення",500))),""),"") -> 1745 | H20: =IFERROR(F20*(ФакторАктивності),"") -> 2244 | I20: =IFERROR(IF(ЦільЩодоВаги="Збільшення",G20-H20,H20-G20),"") -> 499 | J20: 48009 | K20: =IFERROR(IF(Звичайний,J20/КалоріїНаФунт,J20/КалоріїНаФунт/2.2),"") -> 13.7 | L20: =IFERROR(ВагаДляСхудненняНабору-K20,"") -> 1.28 | M20: =IFERROR(IF(B19<>"",L20/(ВагаДляСхудненняНабору),""),"") -> 9%
B21: 2022-08-24 | D21: 11 | E21: 148.6 | F21: =IFERROR(АктивнийBMR,"") -> 1447 | G21: =IFERROR(IF(K20>0,F20*ФакторАктивності+IF(ЦільЩодоВаги="Підтримання",0,IF(ЦільЩодоВаги="ЗМЕНШИЛАСЯ",-500,IF(ЦільЩодоВаги="Збільшення",500))),""),"") -> 1744 | H21: =IFERROR(F21*(ФакторАктивності),"") -> 2243 | I21: =IFERROR(IF(ЦільЩодоВаги="Збільшення",G21-H21,H21-G21),"") -> 499 | J21: 47510 | K21: =IFERROR(IF(Звичайний,J21/КалоріїНаФунт,J21/КалоріїНаФунт/2.2),"") -> 13.6 | L21: =IFERROR(ВагаДляСхудненняНабору-K21,"") -> 1.43 | M21: =IFERROR(IF(B20<>"",L21/(ВагаДляСхудненняНабору),""),"") -> 10%
B22: 2022-08-25 | D22: 12 | E22: 148.4 | F22: =IFERROR(АктивнийBMR,"") -> 1446 | G22: =IFERROR(IF(K21>0,F21*ФакторАктивності+IF(ЦільЩодоВаги="Підтримання",0,IF(ЦільЩодоВаги="ЗМЕНШИЛАСЯ",-500,IF(ЦільЩодоВаги="Збільшення",500))),""),"") -> 1743 | H22: =IFERROR(F22*(ФакторАктивності),"") -> 2242 | I22: =IFERROR(IF(ЦільЩодоВаги="Збільшення",G22-H22,H22-G22),"") -> 499 | J22: 47011 | K22: =IFERROR(IF(Звичайний,J22/КалоріїНаФунт,J22/КалоріїНаФунт/2.2),"") -> 13.4 | L22: =IFERROR(ВагаДляСхудненняНабору-K22,"") -> 1.57 | M22: =IFERROR(IF(B21<>"",L22/(ВагаДляСхудненняНабору),""),"") -> 10%
B23: 2022-08-26 | D23: 13 | E23: 148.3 | F23: =IFERROR(АктивнийBMR,"") -> 1446 | G23: =IFERROR(IF(K22>0,F22*ФакторАктивності+IF(ЦільЩодоВаги="Підтримання",0,IF(ЦільЩодоВаги="ЗМЕНШИЛАСЯ",-500,IF(ЦільЩодоВаги="Збільшення",500))),""),"") -> 1742 | H23: =IFERROR(F23*(ФакторАктивності),"") -> 2241 | I23: =IFERROR(IF(ЦільЩодоВаги="Збільшення",G23-H23,H23-G23),"") -> 499 | J23: 46512 | K23: =IFERROR(IF(Звичайний,J23/КалоріїНаФунт,J23/КалоріїНаФунт/2.2),"") -> 13.3 | L23: =IFERROR(ВагаДляСхудненняНабору-K23,"") -> 1.71 | M23: =IFERROR(IF(B22<>"",L23/(ВагаДляСхудненняНабору),""),"") -> 11%
B24: 2022-08-27 | D24: 14 | E24: 148.1 | F24: =IFERROR(АктивнийBMR,"") -> 1445 | G24: =IFERROR(IF(K23>0,F23*ФакторАктивності+IF(ЦільЩодоВаги="Підтримання",0,IF(ЦільЩодоВаги="ЗМЕНШИЛАСЯ",-500,IF(ЦільЩодоВаги="Збільшення",500))),""),"") -> 1741 | H24: =IFERROR(F24*(ФакторАктивності),"") -> 2240 | I24: =IFERROR(IF(ЦільЩодоВаги="Збільшення",G24-H24,H24-G24),"") -> 499 | J24: 46012 | K24: =IFERROR(IF(Звичайний,J24/КалоріїНаФунт,J24/КалоріїНаФунт/2.2),"") -> 13.1 | L24: =IFERROR(ВагаДляСхудненняНабору-K24,"") -> 1.85 | M24: =IFERROR(IF(B23<>"",L24/(ВагаДляСхудненняНабору),""),"") -> 12%
B25: 2022-08-28 | C25: 3 | D25: 15 | E25: 148.0 | F25: =IFERROR(АктивнийBMR,"") -> 1445 | G25: =IFERROR(IF(K24>0,F24*ФакторАктивності+IF(ЦільЩодоВаги="Підтримання",0,IF(ЦільЩодоВаги="ЗМЕНШИЛАСЯ",-500,IF(ЦільЩодоВаги="Збільшення",500))),""),"") -> 1740 | H25: =IFERROR(F25*(ФакторАктивності),"") -> 2239 | I25: =IFERROR(IF(ЦільЩодоВаги="Збільшення",G25-H25,H25-G25),"") -> 499 | J25: 45513 | K25: =IFERROR(IF(Звичайний,J25/КалоріїНаФунт,J25/КалоріїНаФунт/2.2),"") -> 13.0 | L25: =IFERROR(ВагаДляСхудненняНабору-K25,"") -> 2.00 | M25: =IFERROR(IF(B24<>"",L25/(ВагаДляСхудненняНабору),""),"") -> 13%
B26: 2022-08-29 | D26: 16 | E26: 147.9 | F26: =IFERROR(АктивнийBMR,"") -> 1444 | G26: =IFERROR(IF(K25>0,F25*ФакторАктивності+IF(ЦільЩодоВаги="Підтримання",0,IF(ЦільЩодоВаги="ЗМЕНШИЛАСЯ",-500,IF(ЦільЩодоВаги="Збільшення",500))),""),"") -> 1739 | H26: =IFERROR(F26*(ФакторАктивності),"") -> 2238 | I26: =IFERROR(IF(ЦільЩодоВаги="Збільшення",G26-H26,H26-G26),"") -> 499 | J26: 45014 | K26: =IFERROR(IF(Звичайний,J26/КалоріїНаФунт,J26/КалоріїНаФунт/2.2),"") -> 12.9 | L26: =IFERROR(ВагаДляСхудненняНабору-K26,"") -> 2.14 | M26: =IFERROR(IF(B25<>"",L26/(ВагаДляСхудненняНабору),""),"") -> 14%
B27: 2022-08-30 | D27: 17 | E27: 147.7 | F27: =IFERROR(АктивнийBMR,"") -> 1443 | G27: =IFERROR(IF(K26>0,F26*ФакторАктивності+IF(ЦільЩодоВаги="Підтримання",0,IF(ЦільЩодоВаги="ЗМЕНШИЛАСЯ",-500,IF(ЦільЩодоВаги="Збільшення",500))),""),"") -> 1738 | H27: =IFERROR(F27*(ФакторАктивності),"") -> 2237 | I27: =IFERROR(IF(ЦільЩодоВаги="Збільшення",G27-H27,H27-G27),"") -> 499 | J27: 44515 | K27: =IFERROR(IF(Звичайний,J27/КалоріїНаФунт,J27/КалоріїНаФунт/2.2),"") -> 12.7 | L27: =IFERROR(ВагаДляСхудненняНабору-K27,"") -> 2.28 | M27: =IFERROR(IF(B26<>"",L27/(ВагаДляСхудненняНабору),""),"") -> 15%
B28: 2022-08-31 | D28: 18 | E28: 147.6 | F28: =IFERROR(АктивнийBMR,"") -> 1443 | G28: =IFERROR(IF(K27>0,F27*ФакторАктивності+IF(ЦільЩодоВаги="Підтримання",0,IF(ЦільЩодоВаги="ЗМЕНШИЛАСЯ",-500,IF(ЦільЩодоВаги="Збільшення",500))),""),"") -> 1737 | H28: =IFERROR(F28*(ФакторАктивності),"") -> 2236 | I28: =IFERROR(IF(ЦільЩодоВаги="Збільшення",G28-H28,H28-G28),"") -> 499 | J28: 44016 | K28: =IFERROR(IF(Звичайний,J28/КалоріїНаФунт,J28/КалоріїНаФунт/2.2),"") -> 12.6 | L28: =IFERROR(ВагаДляСхудненняНабору-K28,"") -> 2.42 | M28: =IFERROR(IF(B27<>"",L28/(ВагаДляСхудненняНабору),""),"") -> 16%
B29: 2022-09-01 | D29: 19 | E29: 147.4 | F29: =IFERROR(АктивнийBMR,"") -> 1442 | G29: =IFERROR(IF(K28>0,F28*ФакторАктивності+IF(ЦільЩодоВаги="Підтримання",0,IF(ЦільЩодоВаги="ЗМЕНШИЛАСЯ",-500,IF(ЦільЩодоВаги="Збільшення",500))),""),"") -> 1736 | H29: =IFERROR(F29*(ФакторАктивності),"") -> 2235 | I29: =IFERROR(IF(ЦільЩодоВаги="Збільшення",G29-H29,H29-G29),"") -> 499 | J29: 43517 | K29: =IFERROR(IF(Звичайний,J29/КалоріїНаФунт,J29/КалоріїНаФунт/2.2),"") -> 12.4 | L29: =IFERROR(ВагаДляСхудненняНабору-K29,"") -> 2.57 | M29: =IFERROR(IF(B28<>"",L29/(ВагаДляСхудненняНабору),""),"") -> 17%
B30: 2022-09-02 | D30: 20 | E30: 147.3 | F30: =IFERROR(АктивнийBMR,"") -> 1441 | G30: =IFERROR(IF(K29>0,F29*ФакторАктивності+IF(ЦільЩодоВаги="Підтримання",0,IF(ЦільЩодоВаги="ЗМЕНШИЛАСЯ",-500,IF(ЦільЩодоВаги="Збільшення",500))),""),"") -> 1735 | H30: =IFERROR(F30*(ФакторАктивності),"") -> 2234 | I30: =IFERROR(IF(ЦільЩодоВаги="Збільшення",G30-H30,H30-G30),"") -> 499 | J30: 43018 | K30: =IFERROR(IF(Звичайний,J30/КалоріїНаФунт,J30/КалоріїНаФунт/2.2),"") -> 12.3 | L30: =IFERROR(ВагаДляСхудненняНабору-K30,"") -> 2.71 | M30: =IFERROR(IF(B29<>"",L30/(ВагаДляСхудненняНабору),""),"") -> 18%
B31: 2022-09-03 | D31: 21 | E31: 147.1 | F31: =IFERROR(АктивнийBMR,"") -> 1441 | G31: =IFERROR(IF(K30>0,F30*ФакторАктивності+IF(ЦільЩодоВаги="Підтримання",0,IF(ЦільЩодоВаги="ЗМЕНШИЛАСЯ",-500,IF(ЦільЩодоВаги="Збільшення",500))),""),"") -> 1734 | H31: =IFERROR(F31*(ФакторАктивності),"") -> 2233 | I31: =IFERROR(IF(ЦільЩодоВаги="Збільшення",G31-H31,H31-G31),"") -> 499 | J31: 42519 | K31: =IFERROR(IF(Звичайний,J31/КалоріїНаФунт,J31/КалоріїНаФунт/2.2),"") -> 12.1 | L31: =IFERROR(ВагаДляСхудненняНабору-K31,"") -> 2.85 | M31: =IFERROR(IF(B30<>"",L31/(ВагаДляСхудненняНабору),""),"") -> 19%
B32: 2022-09-04 | C32: 4 | D32: 22 | E32: 147.0 | F32: =IFERROR(АктивнийBMR,"") -> 1440 | G32: =IFERROR(IF(K31>0,F31*ФакторАктивності+IF(ЦільЩодоВаги="Підтримання",0,IF(ЦільЩодоВаги="ЗМЕНШИЛАСЯ",-500,IF(ЦільЩодоВаги="Збільшення",500))),""),"") -> 1733 | H32: =IFERROR(F32*(ФакторАктивності),"") -> 2232 | I32: =IFERROR(IF(ЦільЩодоВаги="Збільшення",G32-H32,H32-G32),"") -> 499 | J32: 42020 | K32: =IFERROR(IF(Звичайний,J32/КалоріїНаФунт,J32/КалоріїНаФунт/2.2),"") -> 12.0 | L32: =IFERROR(ВагаДляСхудненняНабору-K32,"") -> 2.99 | M32: =IFERROR(IF(B31<>"",L32/(ВагаДляСхудненняНабору),""),"") -> 20%
B33: 2022-09-05 | D33: 23 | E33: 146.9 | F33: =IFERROR(АктивнийBMR,"") -> 1440 | G33: =IFERROR(IF(K32>0,F32*ФакторАктивності+IF(ЦільЩодоВаги="Підтримання",0,IF(ЦільЩодоВаги="ЗМЕНШИЛАСЯ",-500,IF(ЦільЩодоВаги="Збільшення",500))),""),"") -> 1732 | H33: =IFERROR(F33*(ФакторАктивності),"") -> 2231 | I33: =IFERROR(IF(ЦільЩодоВаги="Збільшення",G33-H33,H33-G33),"") -> 499 | J33: 41521 | K33: =IFERROR(IF(Звичайний,J33/КалоріїНаФунт,J33/КалоріїНаФунт/2.2),"") -> 11.9 | L33: =IFERROR(ВагаДляСхудненняНабору-K33,"") -> 3.14 | M33: =IFERROR(IF(B32<>"",L33/(ВагаДляСхудненняНабору),""),"") -> 21%
B34: 2022-09-06 | D34: 24 | E34: 146.7 | F34: =IFERROR(АктивнийBMR,"") -> 1439 | G34: =IFERROR(IF(K33>0,F33*ФакторАктивності+IF(ЦільЩодоВаги="Підтримання",0,IF(ЦільЩодоВаги="ЗМЕНШИЛАСЯ",-500,IF(ЦільЩодоВаги="Збільшення",500))),""),"") -> 1731 | H34: =IFERROR(F34*(ФакторАктивності),"") -> 2230 | I34: =IFERROR(IF(ЦільЩодоВаги="Збільшення",G34-H34,H34-G34),"") -> 499 | J34: 41022 | K34: =IFERROR(IF(Звичайний,J34/КалоріїНаФунт,J34/КалоріїНаФунт/2.2),"") -> 11.7 | L34: =IFERROR(ВагаДляСхудненняНабору-K34,"") -> 3.28 | M34: =IFERROR(IF(B33<>"",L34/(ВагаДляСхудненняНабору),""),"") -> 22%
B35: 2022-09-07 | D35: 25 | E35: 146.6 | F35: =IFERROR(АктивнийBMR,"") -> 1438 | G35: =IFERROR(IF(K34>0,F34*ФакторАктивності+IF(ЦільЩодоВаги="Підтримання",0,IF(ЦільЩодоВаги="ЗМЕНШИЛАСЯ",-500,IF(ЦільЩодоВаги="Збільшення",500))),""),"") -> 1730 | H35: =IFERROR(F35*(ФакторАктивності),"") -> 2229 | I35: =IFERROR(IF(ЦільЩодоВаги="Збільшення",G35-H35,H35-G35),"") -> 499 | J35: 40523 | K35: =IFERROR(IF(Звичайний,J35/КалоріїНаФунт,J35/КалоріїНаФунт/2.2),"") -> 11.6 | L35: =IFERROR(ВагаДляСхудненняНабору-K35,"") -> 3.42 | M35: =IFERROR(IF(B34<>"",L35/(ВагаДляСхудненняНабору),""),"") -> 23%
B36: 2022-09-08 | D36: 26 | E36: 146.4 | F36: =IFERROR(АктивнийBMR,"") -> 1438 | G36: =IFERROR(IF(K35>0,F35*ФакторАктивності+IF(ЦільЩодоВаги="Підтримання",0,IF(ЦільЩодоВаги="ЗМЕНШИЛАСЯ",-500,IF(ЦільЩодоВаги="Збільшення",500))),""),"") -> 1729 | H36: =IFERROR(F36*(ФакторАктивності),"") -> 2228 | I36: =IFERROR(IF(ЦільЩодоВаги="Збільшення",G36-H36,H36-G36),"") -> 499 | J36: 40024 | K36: =IFERROR(IF(Звичайний,J36/КалоріїНаФунт,J36/КалоріїНаФунт/2.2),"") -> 11.4 | L36: =IFERROR(ВагаДляСхудненняНабору-K36,"") -> 3.56 | M36: =IFERROR(IF(B35<>"",L36/(ВагаДляСхудненняНабору),""),"") -> 24%
B37: 2022-09-09 | D37: 27 | E37: 146.3 | F37: =IFERROR(АктивнийBMR,"") -> 1437 | G37: =IFERROR(IF(K36>0,F36*ФакторАктивності+IF(ЦільЩодоВаги="Підтримання",0,IF(ЦільЩодоВаги="ЗМЕНШИЛАСЯ",-500,IF(ЦільЩодоВаги="Збільшення",500))),""),"") -> 1728 | H37: =IFERROR(F37*(ФакторАктивності),"") -> 2227 | I37: =IFERROR(IF(ЦільЩодоВаги="Збільшення",G37-H37,H37-G37),"") -> 499 | J37: 39525 | K37: =IFERROR(IF(Звичайний,J37/КалоріїНаФунт,J37/КалоріїНаФунт/2.2),"") -> 11.3 | L37: =IFERROR(ВагаДляСхудненняНабору-K37,"") -> 3.71 | M37: =IFERROR(IF(B36<>"",L37/(ВагаДляСхудненняНабору),""),"") -> 25%
B38: 2022-09-10 | D38: 28 | E38: 146.1 | F38: =IFERROR(АктивнийBMR,"") -> 1436 | G38: =IFERROR(IF(K37>0,F37*ФакторАктивності+IF(ЦільЩодоВаги="Підтримання",0,IF(ЦільЩодоВаги="ЗМЕНШИЛАСЯ",-500,IF(ЦільЩодоВаги="Збільшення",500))),""),"") -> 1727 | H38: =IFERROR(F38*(ФакторАктивності),"") -> 2227 | I38: =IFERROR(IF(ЦільЩодоВаги="Збільшення",G38-H38,H38-G38),"") -> 499 | J38: 39026 | K38: =IFERROR(IF(Звичайний,J38/КалоріїНаФунт,J38/КалоріїНаФунт/2.2),"") -> 11.2 | L38: =IFERROR(ВагаДляСхудненняНабору-K38,"") -> 3.85 | M38: =IFERROR(IF(B37<>"",L38/(ВагаДляСхудненняНабору),""),"") -> 26%
B39: 2022-09-11 | C39: 5 | D39: 29 | E39: 146.0 | F39: =IFERROR(АктивнийBMR,"") -> 1436 | G39: =IFERROR(IF(K38>0,F38*ФакторАктивності+IF(ЦільЩодоВаги="Підтримання",0,IF(ЦільЩодоВаги="ЗМЕНШИЛАСЯ",-500,IF(ЦільЩодоВаги="Збільшення",500))),""),"") -> 1727 | H39: =IFERROR(F39*(ФакторАктивності),"") -> 2226 | I39: =IFERROR(IF(ЦільЩодоВаги="Збільшення",G39-H39,H39-G39),"") -> 499 | J39: 38527 | K39: =IFERROR(IF(Звичайний,J39/КалоріїНаФунт,J39/КалоріїНаФунт/2.2),"") -> 11.0 | L39: =IFERROR(ВагаДляСхудненняНабору-K39,"") -> 3.99 | M39: =IFERROR(IF(B38<>"",L39/(ВагаДляСхудненняНабору),""),"") -> 27%
B40: 2022-09-12 | D40: 30 | E40: 145.9 | F40: =IFERROR(АктивнийBMR,"") -> 1435 | G40: =IFERROR(IF(K39>0,F39*ФакторАктивності+IF(ЦільЩодоВаги="Підтримання",0,IF(ЦільЩодоВаги="ЗМЕНШИЛАСЯ",-500,IF(ЦільЩодоВаги="Збільшення",500))),""),"") -> 1726 | H40: =IFERROR(F40*(ФакторАктивності),"") -> 2225 | I40: =IFERROR(IF(ЦільЩодоВаги="Збільшення",G40-H40,H40-G40),"") -> 499 | J40: 38028 | K40: =IFERROR(IF(Звичайний,J40/КалоріїНаФунт,J40/КалоріїНаФунт/2.2),"") -> 10.9 | L40: =IFERROR(ВагаДляСхудненняНабору-K40,"") -> 4.13 | M40: =IFERROR(IF(B39<>"",L40/(ВагаДляСхудненняНабору),""),"") -> 28%
B41: 2022-09-13 | D41: 31 | E41: 145.7 | F41: =IFERROR(АктивнийBMR,"") -> 1435 | G41: =IFERROR(IF(K40>0,F40*ФакторАктивності+IF(ЦільЩодоВаги="Підтримання",0,IF(ЦільЩодоВаги="ЗМЕНШИЛАСЯ",-500,IF(ЦільЩодоВаги="Збільшення",500))),""),"") -> 1725 | H41: =IFERROR(F41*(ФакторАктивності),"") -> 2224 | I41: =IFERROR(IF(ЦільЩодоВаги="Збільшення",G41-H41,H41-G41),"") -> 499 | J41: 37529 | K41: =IFERROR(IF(Звичайний,J41/КалоріїНаФунт,J41/КалоріїНаФунт/2.2),"") -> 10.7 | L41: =IFERROR(ВагаДляСхудненняНабору-K41,"") -> 4.28 | M41: =IFERROR(IF(B40<>"",L41/(ВагаДляСхудненняНабору),""),"") -> 29%
B42: 2022-09-14 | D42: 32 | E42: 145.6 | F42: =IFERROR(АктивнийBMR,"") -> 1434 | G42: =IFERROR(IF(K41>0,F41*ФакторАктивності+IF(ЦільЩодоВаги="Підтримання",0,IF(ЦільЩодоВаги="ЗМЕНШИЛАСЯ",-500,IF(ЦільЩодоВаги="Збільшення",500))),""),"") -> 1724 | H42: =IFERROR(F42*(ФакторАктивності),"") -> 2223 | I42: =IFERROR(IF(ЦільЩодоВаги="Збільшення",G42-H42,H42-G42),"") -> 499 | J42: 37030 | K42: =IFERROR(IF(Звичайний,J42/КалоріїНаФунт,J42/КалоріїНаФунт/2.2),"") -> 10.6 | L42: =IFERROR(ВагаДляСхудненняНабору-K42,"") -> 4.42 | M42: =IFERROR(IF(B41<>"",L42/(ВагаДляСхудненняНабору),""),"") -> 29%
B43: 2022-09-15 | D43: 33 | E43: 145.4 | F43: =IFERROR(АктивнийBMR,"") -> 1433 | G43: =IFERROR(IF(K42>0,F42*ФакторАктивності+IF(ЦільЩодоВаги="Підтримання",0,IF(ЦільЩодоВаги="ЗМЕНШИЛАСЯ",-500,IF(ЦільЩодоВаги="Збільшення",500))),""),"") -> 1723 | H43: =IFERROR(F43*(ФакторАктивності),"") -> 2222 | I43: =IFERROR(IF(ЦільЩодоВаги="Збільшення",G43-H43,H43-G43),"") -> 499 | J43: 36531 | K43: =IFERROR(IF(Звичайний,J43/КалоріїНаФунт,J43/КалоріїНаФунт/2.2),"") -> 10.4 | L43: =IFERROR(ВагаДляСхудненняНабору-K43,"") -> 4.56 | M43: =IFERROR(IF(B42<>"",L43/(ВагаДляСхудненняНабору),""),"") -> 30%
B44: 2022-09-16 | D44: 34 | E44: 145.3 | F44: =IFERROR(АктивнийBMR,"") -> 1433 | G44: =IFERROR(IF(K43>0,F43*ФакторАктивності+IF(ЦільЩодоВаги="Підтримання",0,IF(ЦільЩодоВаги="ЗМЕНШИЛАСЯ",-500,IF(ЦільЩодоВаги="Збільшення",500))),""),"") -> 1722 | H44: =IFERROR(F44*(ФакторАктивності),"") -> 2221 | I44: =IFERROR(IF(ЦільЩодоВаги="Збільшення",G44-H44,H44-G44),"") -> 499 | J44: 36032 | K44: =IFERROR(IF(Звичайний,J44/КалоріїНаФунт,J44/КалоріїНаФунт/2.2),"") -> 10.3 | L44: =IFERROR(ВагаДляСхудненняНабору-K44,"") -> 4.71 | M44: =IFERROR(IF(B43<>"",L44/(ВагаДляСхудненняНабору),""),"") -> 31%
B45: 2022-09-17 | D45: 35 | E45: 145.2 | F45: =IFERROR(АктивнийBMR,"") -> 1432 | G45: =IFERROR(IF(K44>0,F44*ФакторАктивності+IF(ЦільЩодоВаги="Підтримання",0,IF(ЦільЩодоВаги="ЗМЕНШИЛАСЯ",-500,IF(ЦільЩодоВаги="Збільшення",500))),""),"") -> 1721 | H45: =IFERROR(F45*(ФакторАктивності),"") -> 2220 | I45: =IFERROR(IF(ЦільЩодоВаги="Збільшення",G45-H45,H45-G45),"") -> 499 | J45: 35533 | K45: =IFERROR(IF(Звичайний,J45/КалоріїНаФунт,J45/КалоріїНаФунт/2.2),"") -> 10.2 | L45: =IFERROR(ВагаДляСхудненняНабору-K45,"") -> 4.85 | M45: =IFERROR(IF(B44<>"",L45/(ВагаДляСхудненняНабору),""),"") -> 32%
B46: 2022-09-18 | C46: 6 | D46: 36 | E46: 145.0 | F46: =IFERROR(АктивнийBMR,"") -> 1431 | G46: =IFERROR(IF(K45>0,F45*ФакторАктивності+IF(ЦільЩодоВаги="Підтримання",0,IF(ЦільЩодоВаги="ЗМЕНШИЛАСЯ",-500,IF(ЦільЩодоВаги="Збільшення",500))),""),"") -> 1720 | H46: =IFERROR(F46*(ФакторАктивності),"") -> 2219 | I46: =IFERROR(IF(ЦільЩодоВаги="Збільшення",G46-H46,H46-G46),"") -> 499 | J46: 35034 | K46: =IFERROR(IF(Звичайний,J46/КалоріїНаФунт,J46/КалоріїНаФунт/2.2),"") -> 10.0 | L46: =IFERROR(ВагаДляСхудненняНабору-K46,"") -> 4.99 | M46: =IFERROR(IF(B45<>"",L46/(ВагаДляСхудненняНабору),""),"") -> 33%
B47: 2022-09-19 | D47: 37 | E47: 144.9 | F47: =IFERROR(АктивнийBMR,"") -> 1431 | G47: =IFERROR(IF(K46>0,F46*ФакторАктивності+IF(ЦільЩодоВаги="Підтримання",0,IF(ЦільЩодоВаги="ЗМЕНШИЛАСЯ",-500,IF(ЦільЩодоВаги="Збільшення",500))),""),"") -> 1719 | H47: =IFERROR(F47*(ФакторАктивності),"") -> 2218 | I47: =IFERROR(IF(ЦільЩодоВаги="Збільшення",G47-H47,H47-G47),"") -> 499 | J47: 34535 | K47: =IFERROR(IF(Звичайний,J47/КалоріїНаФунт,J47/КалоріїНаФунт/2.2),"") -> 9.9 | L47: =IFERROR(ВагаДляСхудненняНабору-K47,"") -> 5.13 | M47: =IFERROR(IF(B46<>"",L47/(ВагаДляСхудненняНабору),""),"") -> 34%
B48: 2022-09-20 | D48: 38 | E48: 144.7 | F48: =IFERROR(АктивнийBMR,"") -> 1430 | G48: =IFERROR(IF(K47>0,F47*ФакторАктивності+IF(ЦільЩодоВаги="Підтримання",0,IF(ЦільЩодоВаги="ЗМЕНШИЛАСЯ",-500,IF(ЦільЩодоВаги="Збільшення",500))),""),"") -> 1718 | H48: =IFERROR(F48*(ФакторАктивності),"") -> 2217 | I48: =IFERROR(IF(ЦільЩодоВаги="Збільшення",G48-H48,H48-G48),"") -> 499 | J48: 34036 | K48: =IFERROR(IF(Звичайний,J48/КалоріїНаФунт,J48/КалоріїНаФунт/2.2),"") -> 9.7 | L48: =IFERROR(ВагаДляСхудненняНабору-K48,"") -> 5.28 | M48: =IFERROR(IF(B47<>"",L48/(ВагаДляСхудненняНабору),""),"") -> 35%
B49: 2022-09-21 | D49: 39 | E49: 144.6 | F49: =IFERROR(АктивнийBMR,"") -> 1430 | G49: =IFERROR(IF(K48>0,F48*ФакторАктивності+IF(ЦільЩодоВаги="Підтримання",0,IF(ЦільЩодоВаги="ЗМЕНШИЛАСЯ",-500,IF(ЦільЩодоВаги="Збільшення",500))),""),"") -> 1717 | H49: =IFERROR(F49*(ФакторАктивності),"") -> 2216 | I49: =IFERROR(IF(ЦільЩодоВаги="Збільшення",G49-H49,H49-G49),"") -> 499 | J49: 33537 | K49: =IFERROR(IF(Звичайний,J49/КалоріїНаФунт,J49/КалоріїНаФунт/2.2),"") -> 9.6 | L49: =IFERROR(ВагаДляСхудненняНабору-K49,"") -> 5.42 | M49: =IFERROR(IF(B48<>"",L49/(ВагаДляСхудненняНабору),""),"") -> 36%
B50: 2022-09-22 | D50: 40 | E50: 144.4 | F50: =IFERROR(АктивнийBMR,"") -> 1429 | G50: =IFERROR(IF(K49>0,F49*ФакторАктивності+IF(ЦільЩодоВаги="Підтримання",0,IF(ЦільЩодоВаги="ЗМЕНШИЛАСЯ",-500,IF(ЦільЩодоВаги="Збільшення",500))),""),"") -> 1716 | H50: =IFERROR(F50*(ФакторАктивності),"") -> 2215 | I50: =IFERROR(IF(ЦільЩодоВаги="Збільшення",G50-H50,H50-G50),"") -> 499 | J50: 33037 | K50: =IFERROR(IF(Звичайний,J50/КалоріїНаФунт,J50/КалоріїНаФунт/2.2),"") -> 9.4 | L50: =IFERROR(ВагаДляСхудненняНабору-K50,"") -> 5.56 | M50: =IFERROR(IF(B49<>"",L50/(ВагаДляСхудненняНабору),""),"") -> 37%
B51: 2022-09-23 | D51: 41 | E51: 144.3 | F51: =IFERROR(АктивнийBMR,"") -> 1428 | G51: =IFERROR(IF(K50>0,F50*ФакторАктивності+IF(ЦільЩодоВаги="Підтримання",0,IF(ЦільЩодоВаги="ЗМЕНШИЛАСЯ",-500,IF(ЦільЩодоВаги="Збільшення",500))),""),"") -> 1715 | H51: =IFERROR(F51*(ФакторАктивності),"") -> 2214 | I51: =IFERROR(IF(ЦільЩодоВаги="Збільшення",G51-H51,H51-G51),"") -> 499 | J51: 32538 | K51: =IFERROR(IF(Звичайний,J51/КалоріїНаФунт,J51/КалоріїНаФунт/2.2),"") -> 9.3 | L51: =IFERROR(ВагаДляСхудненняНабору-K51,"") -> 5.70 | M51: =IFERROR(IF(B50<>"",L51/(ВагаДляСхудненняНабору),""),"") -> 38%
B52: 2022-09-24 | D52: 42 | E52: 144.2 | F52: =IFERROR(АктивнийBMR,"") -> 1428 | G52: =IFERROR(IF(K51>0,F51*ФакторАктивності+IF(ЦільЩодоВаги="Підтримання",0,IF(ЦільЩодоВаги="ЗМЕНШИЛАСЯ",-500,IF(ЦільЩодоВаги="Збільшення",500))),""),"") -> 1714 | H52: =IFERROR(F52*(ФакторАктивності),"") -> 2213 | I52: =IFERROR(IF(ЦільЩодоВаги="Збільшення",G52-H52,H52-G52),"") -> 499 | J52: 32039 | K52: =IFERROR(IF(Звичайний,J52/КалоріїНаФунт,J52/КалоріїНаФунт/2.2),"") -> 9.2 | L52: =IFERROR(ВагаДляСхудненняНабору-K52,"") -> 5.85 | M52: =IFERROR(IF(B51<>"",L52/(ВагаДляСхудненняНабору),""),"") -> 39%
B53: 2022-09-25 | C53: 7 | D53: 43 | E53: 144.0 | F53: =IFERROR(АктивнийBMR,"") -> 1427 | G53: =IFERROR(IF(K52>0,F52*ФакторАктивності+IF(ЦільЩодоВаги="Підтримання",0,IF(ЦільЩодоВаги="ЗМЕНШИЛАСЯ",-500,IF(ЦільЩодоВаги="Збільшення",500))),""),"") -> 1713 | H53: =IFERROR(F53*(ФакторАктивності),"") -> 2212 | I53: =IFERROR(IF(ЦільЩодоВаги="Збільшення",G53-H53,H53-G53),"") -> 499 | J53: 31540 | K53: =IFERROR(IF(Звичайний,J53/КалоріїНаФунт,J53/КалоріїНаФунт/2.2),"") -> 9.0 | L53: =IFERROR(ВагаДляСхудненняНабору-K53,"") -> 5.99 | M53: =IFERROR(IF(B52<>"",L53/(ВагаДляСхудненняНабору),""),"") -> 40%
B54: 2022-09-26 | D54: 44 | E54: 143.9 | F54: =IFERROR(АктивнийBMR,"") -> 1427 | G54: =IFERROR(IF(K53>0,F53*ФакторАктивності+IF(ЦільЩодоВаги="Підтримання",0,IF(ЦільЩодоВаги="ЗМЕНШИЛАСЯ",-500,IF(ЦільЩодоВаги="Збільшення",500))),""),"") -> 1712 | H54: =IFERROR(F54*(ФакторАктивності),"") -> 2211 | I54: =IFERROR(IF(ЦільЩодоВаги="Збільшення",G54-H54,H54-G54),"") -> 499 | J54: 31041 | K54: =IFERROR(IF(Звичайний,J54/КалоріїНаФунт,J54/КалоріїНаФунт/2.2),"") -> 8.9 | L54: =IFERROR(ВагаДляСхудненняНабору-K54,"") -> 6.13 | M54: =IFERROR(IF(B53<>"",L54/(ВагаДляСхудненняНабору),""),"") -> 41%
B55: 2022-09-27 | D55: 45 | E55: 143.7 | F55: =IFERROR(АктивнийBMR,"") -> 1426 | G55: =IFERROR(IF(K54>0,F54*ФакторАктивності+IF(ЦільЩодоВаги="Підтримання",0,IF(ЦільЩодоВаги="ЗМЕНШИЛАСЯ",-500,IF(ЦільЩодоВаги="Збільшення",500))),""),"") -> 1711 | H55: =IFERROR(F55*(ФакторАктивності),"") -> 2210 | I55: =IFERROR(IF(ЦільЩодоВаги="Збільшення",G55-H55,H55-G55),"") -> 499 | J55: 30542 | K55: =IFERROR(IF(Звичайний,J55/КалоріїНаФунт,J55/КалоріїНаФунт/2.2),"") -> 8.7 | L55: =IFERROR(ВагаДляСхудненняНабору-K55,"") -> 6.27 | M55: =IFERROR(IF(B54<>"",L55/(ВагаДляСхудненняНабору),""),"") -> 42%
B56: 2022-09-28 | D56: 46 | E56: 143.6 | F56: =IFERROR(АктивнийBMR,"") -> 1425 | G56: =IFERROR(IF(K55>0,F55*ФакторАктивності+IF(ЦільЩодоВаги="Підтримання",0,IF(ЦільЩодоВаги="ЗМЕНШИЛАСЯ",-500,IF(ЦільЩодоВаги="Збільшення",500))),""),"") -> 1710 | H56: =IFERROR(F56*(ФакторАктивності),"") -> 2209 | I56: =IFERROR(IF(ЦільЩодоВаги="Збільшення",G56-H56,H56-G56),"") -> 499 | J56: 30043 | K56: =IFERROR(IF(Звичайний,J56/КалоріїНаФунт,J56/КалоріїНаФунт/2.2),"") -> 8.6 | L56: =IFERROR(ВагаДляСхудненняНабору-K56,"") -> 6.42 | M56: =IFERROR(IF(B55<>"",L56/(ВагаДляСхудненняНабору),""),"") -> 43%
B57: 2022-09-29 | D57: 47 | E57: 143.4 | F57: =IFERROR(АктивнийBMR,"") -> 1425 | G57: =IFERROR(IF(K56>0,F56*ФакторАктивності+IF(ЦільЩодоВаги="Підтримання",0,IF(ЦільЩодоВаги="ЗМЕНШИЛАСЯ",-500,IF(ЦільЩодоВаги="Збільшення",500))),""),"") -> 1709 | H57: =IFERROR(F57*(ФакторАктивності),"") -> 2208 | I57: =IFERROR(IF(ЦільЩодоВаги="Збільшення",G57-H57,H57-G57),"") -> 499 | J57: 29544 | K57: =IFERROR(IF(Звичайний,J57/КалоріїНаФунт,J57/КалоріїНаФунт/2.2),"") -> 8.4 | L57: =IFERROR(ВагаДляСхудненняНабору-K57,"") -> 6.56 | M57: =IFERROR(IF(B56<>"",L57/(ВагаДляСхудненняНабору),""),"") -> 44%
B58: 2022-09-30 | D58: 48 | E58: 143.3 | F58: =IFERROR(АктивнийBMR,"") -> 1424 | G58: =IFERROR(IF(K57>0,F57*ФакторАктивності+IF(ЦільЩодоВаги="Підтримання",0,IF(ЦільЩодоВаги="ЗМЕНШИЛАСЯ",-500,IF(ЦільЩодоВаги="Збільшення",500))),""),"") -> 1708 | H58: =IFERROR(F58*(ФакторАктивності),"") -> 2207 | I58: =IFERROR(IF(ЦільЩодоВаги="Збільшення",G58-H58,H58-G58),"") -> 499 | J58: 29045 | K58: =IFERROR(IF(Звичайний,J58/КалоріїНаФунт,J58/КалоріїНаФунт/2.2),"") -> 8.3 | L58: =IFERROR(ВагаДляСхудненняНабору-K58,"") -> 6.70 | M58: =IFERROR(IF(B57<>"",L58/(ВагаДляСхудненняНабору),""),"") -> 45%
B59: 2022-10-01 | D59: 49 | E59: 143.2 | F59: =IFERROR(АктивнийBMR,"") -> 1423 | G59: =IFERROR(IF(K58>0,F58*ФакторАктивності+IF(ЦільЩодоВаги="Підтримання",0,IF(ЦільЩодоВаги="ЗМЕНШИЛАСЯ",-500,IF(ЦільЩодоВаги="Збільшення",500))),""),"") -> 1707 | H59: =IFERROR(F59*(ФакторАктивності),"") -> 2206 | I59: =IFERROR(IF(ЦільЩодоВаги="Збільшення",G59-H59,H59-G59),"") -> 499 | J59: 28546 | K59: =IFERROR(IF(Звичайний,J59/КалоріїНаФунт,J59/КалоріїНаФунт/2.2),"") -> 8.2 | L59: =IFERROR(ВагаДляСхудненняНабору-K59,"") -> 6.84 | M59: =IFERROR(IF(B58<>"",L59/(ВагаДляСхудненняНабору),""),"") -> 46%
B60: 2022-10-02 | C60: 8 | D60: 50 | E60: 143.0 | F60: =IFERROR(АктивнийBMR,"") -> 1423 | G60: =IFERROR(IF(K59>0,F59*ФакторАктивності+IF(ЦільЩодоВаги="Підтримання",0,IF(ЦільЩодоВаги="ЗМЕНШИЛАСЯ",-500,IF(ЦільЩодоВаги="Збільшення",500))),""),"") -> 1706 | H60: =IFERROR(F60*(ФакторАктивності),"") -> 2205 | I60: =IFERROR(IF(ЦільЩодоВаги="Збільшення",G60-H60,H60-G60),"") -> 499 | J60: 28047 | K60: =IFERROR(IF(Звичайний,J60/КалоріїНаФунт,J60/КалоріїНаФунт/2.2),"") -> 8.0 | L60: =IFERROR(ВагаДляСхудненняНабору-K60,"") -> 6.99 | M60: =IFERROR(IF(B59<>"",L60/(ВагаДляСхудненняНабору),""),"") -> 47%
B61: 2022-10-03 | D61: 51 | E61: 142.9 | F61: =IFERROR(АктивнийBMR,"") -> 1422 | G61: =IFERROR(IF(K60>0,F60*ФакторАктивності+IF(ЦільЩодоВаги="Підтримання",0,IF(ЦільЩодоВаги="ЗМЕНШИЛАСЯ",-500,IF(ЦільЩодоВаги="Збільшення",500))),""),"") -> 1705 | H61: =IFERROR(F61*(ФакторАктивності),"") -> 2204 | I61: =IFERROR(IF(ЦільЩодоВаги="Збільшення",G61-H61,H61-G61),"") -> 499 | J61: 27548 | K61: =IFERROR(IF(Звичайний,J61/КалоріїНаФунт,J61/КалоріїНаФунт/2.2),"") -> 7.9 | L61: =IFERROR(ВагаДляСхудненняНабору-K61,"") -> 7.13 | M61: =IFERROR(IF(B60<>"",L61/(ВагаДляСхудненняНабору),""),"") -> 48%
B62: 2022-10-04 | D62: 52 | E62: 142.7 | F62: =IFERROR(АктивнийBMR,"") -> 1422 | G62: =IFERROR(IF(K61>0,F61*ФакторАктивності+IF(ЦільЩодоВаги="Підтримання",0,IF(ЦільЩодоВаги="ЗМЕНШИЛАСЯ",-500,IF(ЦільЩодоВаги="Збільшення",500))),""),"") -> 1704 | H62: =IFERROR(F62*(ФакторАктивності),"") -> 2203 | I62: =IFERROR(IF(ЦільЩодоВаги="Збільшення",G62-H62,H62-G62),"") -> 499 | J62: 27049 | K62: =IFERROR(IF(Звичайний,J62/КалоріїНаФунт,J62/КалоріїНаФунт/2.2),"") -> 7.7 | L62: =IFERROR(ВагаДляСхудненняНабору-K62,"") -> 7.27 | M62: =IFERROR(IF(B61<>"",L62/(ВагаДляСхудненняНабору),""),"") -> 48%
B63: 2022-10-05 | D63: 53 | E63: 142.6 | F63: =IFERROR(АктивнийBMR,"") -> 1421 | G63: =IFERROR(IF(K62>0,F62*ФакторАктивності+IF(ЦільЩодоВаги="Підтримання",0,IF(ЦільЩодоВаги="ЗМЕНШИЛАСЯ",-500,IF(ЦільЩодоВаги="Збільшення",500))),""),"") -> 1703 | H63: =IFERROR(F63*(ФакторАктивності),"") -> 2202 | I63: =IFERROR(IF(ЦільЩодоВаги="Збільшення",G63-H63,H63-G63),"") -> 499 | J63: 26550 | K63: =IFERROR(IF(Звичайний,J63/КалоріїНаФунт,J63/КалоріїНаФунт/2.2),"") -> 7.6 | L63: =IFERROR(ВагаДляСхудненняНабору-K63,"") -> 7.41 | M63: =IFERROR(IF(B62<>"",L63/(ВагаДляСхудненняНабору),""),"") -> 49%
B64: 2022-10-06 | D64: 54 | E64: 142.4 | F64: =IFERROR(АктивнийBMR,"") -> 1420 | G64: =IFERROR(IF(K63>0,F63*ФакторАктивності+IF(ЦільЩодоВаги="Підтримання",0,IF(ЦільЩодоВаги="ЗМЕНШИЛАСЯ",-500,IF(ЦільЩодоВаги="Збільшення",500))),""),"") -> 1702 | H64: =IFERROR(F64*(ФакторАктивності),"") -> 2202 | I64: =IFERROR(IF(ЦільЩодоВаги="Збільшення",G64-H64,H64-G64),"") -> 499 | J64: 26051 | K64: =IFERROR(IF(Звичайний,J64/КалоріїНаФунт,J64/КалоріїНаФунт/2.2),"") -> 7.4 | L64: =IFERROR(ВагаДляСхудненняНабору-K64,"") -> 7.56 | M64: =IFERROR(IF(B63<>"",L64/(ВагаДляСхудненняНабору),""),"") -> 50%
B65: 2022-10-07 | D65: 55 | E65: 142.3 | F65: =IFERROR(АктивнийBMR,"") -> 1420 | G65: =IFERROR(IF(K64>0,F64*ФакторАктивності+IF(ЦільЩодоВаги="Підтримання",0,IF(ЦільЩодоВаги="ЗМЕНШИЛАСЯ",-500,IF(ЦільЩодоВаги="Збільшення",500))),""),"") -> 1702 | H65: =IFERROR(F65*(ФакторАктивності),"") -> 2201 | I65: =IFERROR(IF(ЦільЩодоВаги="Збільшення",G65-H65,H65-G65),"") -> 499 | J65: 25552 | K65: =IFERROR(IF(Звичайний,J65/КалоріїНаФунт,J65/КалоріїНаФунт/2.2),"") -> 7.3 | L65: =IFERROR(ВагаДляСхудненняНабору-K65,"") -> 7.70 | M65: =IFERROR(IF(B64<>"",L65/(ВагаДляСхудненняНабору),""),"") -> 51%
B66: 2022-10-08 | D66: 56 | E66: 142.2 | F66: =IFERROR(АктивнийBMR,"") -> 1419 | G66: =IFERROR(IF(K65>0,F65*ФакторАктивності+IF(ЦільЩодоВаги="Підтримання",0,IF(ЦільЩодоВаги="ЗМЕНШИЛАСЯ",-500,IF(ЦільЩодоВаги="Збільшення",500))),""),"") -> 1701 | H66: =IFERROR(F66*(ФакторАктивності),"") -> 2200 | I66: =IFERROR(IF(ЦільЩодоВаги="Збільшення",G66-H66,H66-G66),"") -> 499 | J66: 25053 | K66: =IFERROR(IF(Звичайний,J66/КалоріїНаФунт,J66/КалоріїНаФунт/2.2),"") -> 7.2 | L66: =IFERROR(ВагаДляСхудненняНабору-K66,"") -> 7.84 | M66: =IFERROR(IF(B65<>"",L66/(ВагаДляСхудненняНабору),""),"") -> 52%
B67: 2022-10-09 | C67: 9 | D67: 57 | E67: 142.0 | F67: =IFERROR(АктивнийBMR,"") -> 1418 | G67: =IFERROR(IF(K66>0,F66*ФакторАктивності+IF(ЦільЩодоВаги="Підтримання",0,IF(ЦільЩодоВаги="ЗМЕНШИЛАСЯ",-500,IF(ЦільЩодоВаги="Збільшення",500))),""),"") -> 1700 | H67: =IFERROR(F67*(ФакторАктивності),"") -> 2199 | I67: =IFERROR(IF(ЦільЩодоВаги="Збільшення",G67-H67,H67-G67),"") -> 499 | J67: 24554 | K67: =IFERROR(IF(Звичайний,J67/КалоріїНаФунт,J67/КалоріїНаФунт/2.2),"") -> 7.0 | L67: =IFERROR(ВагаДляСхудненняНабору-K67,"") -> 7.98 | M67: =IFERROR(IF(B66<>"",L67/(ВагаДляСхудненняНабору),""),"") -> 53%
B68: 2022-10-10 | D68: 58 | E68: 141.9 | F68: =IFERROR(АктивнийBMR,"") -> 1418 | G68: =IFERROR(IF(K67>0,F67*ФакторАктивності+IF(ЦільЩодоВаги="Підтримання",0,IF(ЦільЩодоВаги="ЗМЕНШИЛАСЯ",-500,IF(ЦільЩодоВаги="Збільшення",500))),""),"") -> 1699 | H68: =IFERROR(F68*(ФакторАктивності),"") -> 2198 | I68: =IFERROR(IF(ЦільЩодоВаги="Збільшення",G68-H68,H68-G68),"") -> 499 | J68: 24055 | K68: =IFERROR(IF(Звичайний,J68/КалоріїНаФунт,J68/КалоріїНаФунт/2.2),"") -> 6.9 | L68: =IFERROR(ВагаДляСхудненняНабору-K68,"") -> 8.13 | M68: =IFERROR(IF(B67<>"",L68/(ВагаДляСхудненняНабору),""),"") -> 54%
B69: 2022-10-11 | D69: 59 | E69: 141.7 | F69: =IFERROR(АктивнийBMR,"") -> 1417 | G69: =IFERROR(IF(K68>0,F68*ФакторАктивності+IF(ЦільЩодоВаги="Підтримання",0,IF(ЦільЩодоВаги="ЗМЕНШИЛАСЯ",-500,IF(ЦільЩодоВаги="Збільшення",500))),""),"") -> 1698 | H69: =IFERROR(F69*(ФакторАктивності),"") -> 2197 | I69: =IFERROR(IF(ЦільЩодоВаги="Збільшення",G69-H69,H69-G69),"") -> 499 | J69: 23556 | K69: =IFERROR(IF(Звичайний,J69/КалоріїНаФунт,J69/КалоріїНаФунт/2.2),"") -> 6.7 | L69: =IFERROR(ВагаДляСхудненняНабору-K69,"") -> 8.27 | M69: =IFERROR(IF(B68<>"",L69/(ВагаДляСхудненняНабору),""),"") -> 55%
B70: 2022-10-12 | D70: 60 | E70: 141.6 | F70: =IFERROR(АктивнийBMR,"") -> 1417 | G70: =IFERROR(IF(K69>0,F69*ФакторАктивності+IF(ЦільЩодоВаги="Підтримання",0,IF(ЦільЩодоВаги="ЗМЕНШИЛАСЯ",-500,IF(ЦільЩодоВаги="Збільшення",500))),""),"") -> 1697 | H70: =IFERROR(F70*(ФакторАктивності),"") -> 2196 | I70: =IFERROR(IF(ЦільЩодоВаги="Збільшення",G70-H70,H70-G70),"") -> 499 | J70: 23057 | K70: =IFERROR(IF(Звичайний,J70/КалоріїНаФунт,J70/КалоріїНаФунт/2.2),"") -> 6.6 | L70: =IFERROR(ВагаДляСхудненняНабору-K70,"") -> 8.41 | M70: =IFERROR(IF(B69<>"",L70/(ВагаДляСхудненняНабору),""),"") -> 56%
B71: 2022-10-13 | D71: 61 | E71: 141.4 | F71: =IFERROR(АктивнийBMR,"") -> 1416 | G71: =IFERROR(IF(K70>0,F70*ФакторАктивності+IF(ЦільЩодоВаги="Підтримання",0,IF(ЦільЩодоВаги="ЗМЕНШИЛАСЯ",-500,IF(ЦільЩодоВаги="Збільшення",500))),""),"") -> 1696 | H71: =IFERROR(F71*(ФакторАктивності),"") -> 2195 | I71: =IFERROR(IF(ЦільЩодоВаги="Збільшення",G71-H71,H71-G71),"") -> 499 | J71: 22558 | K71: =IFERROR(IF(Звичайний,J71/КалоріїНаФунт,J71/КалоріїНаФунт/2.2),"") -> 6.4 | L71: =IFERROR(ВагаДляСхудненняНабору-K71,"") -> 8.55 | M71: =IFERROR(IF(B70<>"",L71/(ВагаДляСхудненняНабору),""),"") -> 57%
B72: 2022-10-14 | D72: 62 | E72: 141.3 | F72: =IFERROR(АктивнийBMR,"") -> 1415 | G72: =IFERROR(IF(K71>0,F71*ФакторАктивності+IF(ЦільЩодоВаги="Підтримання",0,IF(ЦільЩодоВаги="ЗМЕНШИЛАСЯ",-500,IF(ЦільЩодоВаги="Збільшення",500))),""),"") -> 1695 | H72: =IFERROR(F72*(ФакторАктивності),"") -> 2194 | I72: =IFERROR(IF(ЦільЩодоВаги="Збільшення",G72-H72,H72-G72),"") -> 499 | J72: 22059 | K72: =IFERROR(IF(Звичайний,J72/КалоріїНаФунт,J72/КалоріїНаФунт/2.2),"") -> 6.3 | L72: =IFERROR(ВагаДляСхудненняНабору-K72,"") -> 8.70 | M72: =IFERROR(IF(B71<>"",L72/(ВагаДляСхудненняНабору),""),"") -> 58%
B73: 2022-10-15 | D73: 63 | E73: 141.2 | F73: =IFERROR(АктивнийBMR,"") -> 1415 | G73: =IFERROR(IF(K72>0,F72*ФакторАктивності+IF(ЦільЩодоВаги="Підтримання",0,IF(ЦільЩодоВаги="ЗМЕНШИЛАСЯ",-500,IF(ЦільЩодоВаги="Збільшення",500))),""),"") -> 1694 | H73: =IFERROR(F73*(ФакторАктивності),"") -> 2193 | I73: =IFERROR(IF(ЦільЩодоВаги="Збільшення",G73-H73,H73-G73),"") -> 499 | J73: 21560 | K73: =IFERROR(IF(Звичайний,J73/КалоріїНаФунт,J73/КалоріїНаФунт/2.2),"") -> 6.2 | L73: =IFERROR(ВагаДляСхудненняНабору-K73,"") -> 8.84 | M73: =IFERROR(IF(B72<>"",L73/(ВагаДляСхудненняНабору),""),"") -> 59%
B74: 2022-10-16 | C74: 10 | D74: 64 | E74: 141.0 | F74: =IFERROR(АктивнийBMR,"") -> 1414 | G74: =IFERROR(IF(K73>0,F73*ФакторАктивності+IF(ЦільЩодоВаги="Підтримання",0,IF(ЦільЩодоВаги="ЗМЕНШИЛАСЯ",-500,IF(ЦільЩодоВаги="Збільшення",500))),""),"") -> 1693 | H74: =IFERROR(F74*(ФакторАктивності),"") -> 2192 | I74: =IFERROR(IF(ЦільЩодоВаги="Збільшення",G74-H74,H74-G74),"") -> 499 | J74: 21061 | K74: =IFERROR(IF(Звичайний,J74/КалоріїНаФунт,J74/КалоріїНаФунт/2.2),"") -> 6.0 | L74: =IFERROR(ВагаДляСхудненняНабору-K74,"") -> 8.98 | M74: =IFERROR(IF(B73<>"",L74/(ВагаДляСхудненняНабору),""),"") -> 60%
B75: 2022-10-17 | D75: 65 | E75: 140.9 | F75: =IFERROR(АктивнийBMR,"") -> 1414 | G75: =IFERROR(IF(K74>0,F74*ФакторАктивності+IF(ЦільЩодоВаги="Підтримання",0,IF(ЦільЩодоВаги="ЗМЕНШИЛАСЯ",-500,IF(ЦільЩодоВаги="Збільшення",500))),""),"") -> 1692 | H75: =IFERROR(F75*(ФакторАктивності),"") -> 2191 | I75: =IFERROR(IF(ЦільЩодоВаги="Збільшення",G75-H75,H75-G75),"") -> 499 | J75: 20562 | K75: =IFERROR(IF(Звичайний,J75/КалоріїНаФунт,J75/КалоріїНаФунт/2.2),"") -> 5.9 | L75: =IFERROR(ВагаДляСхудненняНабору-K75,"") -> 9.13 | M75: =IFERROR(IF(B74<>"",L75/(ВагаДляСхудненняНабору),""),"") -> 61%
B76: =IFERROR(IF(K75>0,B75+1,""),"") -> 2022-10-18 | D76: =IFERROR(IF(K75>0,D75+1,""),"") -> 66 | E76: =IFERROR(IF($D76<>"",E75-(I75/КалоріїНаФунт),""),"") -> 140.7 | F76: =IFERROR(АктивнийBMR,"") -> 1413 | G76: =IFERROR(IF(K75>0,F75*ФакторАктивності+IF(ЦільЩодоВаги="Підтримання",0,IF(ЦільЩодоВаги="ЗМЕНШИЛАСЯ",-500,IF(ЦільЩодоВаги="Збільшення",500))),""),"") -> 1691 | H76: =IFERROR(F76*(ФакторАктивності),"") -> 2190 | I76: =IFERROR(IF(ЦільЩодоВаги="Збільшення",G76-H76,H76-G76),"") -> 499 | J76: 20062 | K76: =IFERROR(IF(Звичайний,J76/КалоріїНаФунт,J76/КалоріїНаФунт/2.2),"") -> 5.7 | L76: =IFERROR(ВагаДляСхудненняНабору-K76,"") -> 9.27 | M76: =IFERROR(IF(B75<>"",L76/(ВагаДляСхудненняНабору),""),"") -> 62%
B77: 2022-10-19 | C77: =IFERROR(IF(D77<>"",IF(MOD(D77,7)=1,(D76/7)+1,""),""),"") ->  | D77: 67 | E77: 140.6 | F77: =IFERROR(АктивнийBMR,"") -> 1412 | G77: =IFERROR(IF(K76>0,F76*ФакторАктивності+IF(ЦільЩодоВаги="Підтримання",0,IF(ЦільЩодоВаги="ЗМЕНШИЛАСЯ",-500,IF(ЦільЩодоВаги="Збільшення",500))),""),"") -> 1690 | H77: =IFERROR(F77*(ФакторАктивності),"") -> 2189 | I77: =IFERROR(IF(ЦільЩодоВаги="Збільшення",G77-H77,H77-G77),"") -> 499 | J77: =IFERROR(J76-I77,"") -> 19563 | K77: =IFERROR(IF(Звичайний,J77/КалоріїНаФунт,J77/КалоріїНаФунт/2.2),"") -> 5.6 | L77: =IFERROR(ВагаДляСхудненняНабору-K77,"") -> 9.41 | M77: =IFERROR(IF(B76<>"",L77/(ВагаДляСхудненняНабору),""),"") -> 63%
B78: 2022-10-20 | D78: 68 | E78: 140.4 | F78: =IFERROR(АктивнийBMR,"") -> 1412 | G78: =IFERROR(IF(K77>0,F77*ФакторАктивності+IF(ЦільЩодоВаги="Підтримання",0,IF(ЦільЩодоВаги="ЗМЕНШИЛАСЯ",-500,IF(ЦільЩодоВаги="Збільшення",500))),""),"") -> 1689 | H78: =IFERROR(F78*(ФакторАктивності),"") -> 2188 | I78: =IFERROR(IF(ЦільЩодоВаги="Збільшення",G78-H78,H78-G78),"") -> 499 | J78: 19064 | K78: =IFERROR(IF(Звичайний,J78/КалоріїНаФунт,J78/КалоріїНаФунт/2.2),"") -> 5.4 | L78: =IFERROR(ВагаДляСхудненняНабору-K78,"") -> 9.55 | M78: =IFERROR(IF(B77<>"",L78/(ВагаДляСхудненняНабору),""),"") -> 64%
B79: 2022-10-21 | D79: 69 | E79: 140.3 | F79: =IFERROR(АктивнийBMR,"") -> 1411 | G79: =IFERROR(IF(K78>0,F78*ФакторАктивності+IF(ЦільЩодоВаги="Підтримання",0,IF(ЦільЩодоВаги="ЗМЕНШИЛАСЯ",-500,IF(ЦільЩодоВаги="Збільшення",500))),""),"") -> 1688 | H79: =IFERROR(F79*(ФакторАктивності),"") -> 2187 | I79: =IFERROR(IF(ЦільЩодоВаги="Збільшення",G79-H79,H79-G79),"") -> 499 | J79: 18565 | K79: =IFERROR(IF(Звичайний,J79/КалоріїНаФунт,J79/КалоріїНаФунт/2.2),"") -> 5.3 | L79: =IFERROR(ВагаДляСхудненняНабору-K79,"") -> 9.70 | M79: =IFERROR(IF(B78<>"",L79/(ВагаДляСхудненняНабору),""),"") -> 65%
B80: 2022-10-22 | D80: 70 | E80: 140.2 | F80: =IFERROR(АктивнийBMR,"") -> 1410 | G80: =IFERROR(IF(K79>0,F79*ФакторАктивності+IF(ЦільЩодоВаги="Підтримання",0,IF(ЦільЩодоВаги="ЗМЕНШИЛАСЯ",-500,IF(ЦільЩодоВаги="Збільшення",500))),""),"") -> 1687 | H80: =IFERROR(F80*(ФакторАктивності),"") -> 2186 | I80: =IFERROR(IF(ЦільЩодоВаги="Збільшення",G80-H80,H80-G80),"") -> 499 | J80: 18066 | K80: =IFERROR(IF(Звичайний,J80/КалоріїНаФунт,J80/КалоріїНаФунт/2.2),"") -> 5.2 | L80: =IFERROR(ВагаДляСхудненняНабору-K80,"") -> 9.84 | M80: =IFERROR(IF(B79<>"",L80/(ВагаДляСхудненняНабору),""),"") -> 66%
B81: 2022-10-23 | C81: 11 | D81: 71 | E81: 140.0 | F81: =IFERROR(АктивнийBMR,"") -> 1410 | G81: =IFERROR(IF(K80>0,F80*ФакторАктивності+IF(ЦільЩодоВаги="Підтримання",0,IF(ЦільЩодоВаги="ЗМЕНШИЛАСЯ",-500,IF(ЦільЩодоВаги="Збільшення",500))),""),"") -> 1686 | H81: =IFERROR(F81*(ФакторАктивності),"") -> 2185 | I81: =IFERROR(IF(ЦільЩодоВаги="Збільшення",G81-H81,H81-G81),"") -> 499 | J81: 17567 | K81: =IFERROR(IF(Звичайний,J81/КалоріїНаФунт,J81/КалоріїНаФунт/2.2),"") -> 5.0 | L81: =IFERROR(ВагаДляСхудненняНабору-K81,"") -> 9.98 | M81: =IFERROR(IF(B80<>"",L81/(ВагаДляСхудненняНабору),""),"") -> 67%
B82: 2022-10-24 | D82: 72 | E82: 139.9 | F82: =IFERROR(АктивнийBMR,"") -> 1409 | G82: =IFERROR(IF(K81>0,F81*ФакторАктивності+IF(ЦільЩодоВаги="Підтримання",0,IF(ЦільЩодоВаги="ЗМЕНШИЛАСЯ",-500,IF(ЦільЩодоВаги="Збільшення",500))),""),"") -> 1685 | H82: =IFERROR(F82*(ФакторАктивності),"") -> 2184 | I82: =IFERROR(IF(ЦільЩодоВаги="Збільшення",G82-H82,H82-G82),"") -> 499 | J82: 17068 | K82: =IFERROR(IF(Звичайний,J82/КалоріїНаФунт,J82/КалоріїНаФунт/2.2),"") -> 4.9 | L82: =IFERROR(ВагаДляСхудненняНабору-K82,"") -> 10.12 | M82: =IFERROR(IF(B81<>"",L82/(ВагаДляСхудненняНабору),""),"") -> 67%
B83: 2022-10-25 | D83: 73 | E83: 139.7 | F83: =IFERROR(АктивнийBMR,"") -> 1409 | G83: =IFERROR(IF(K82>0,F82*ФакторАктивності+IF(ЦільЩодоВаги="Підтримання",0,IF(ЦільЩодоВаги="ЗМЕНШИЛАСЯ",-500,IF(ЦільЩодоВаги="Збільшення",500))),""),"") -> 1684 | H83: =IFERROR(F83*(ФакторАктивності),"") -> 2183 | I83: =IFERROR(IF(ЦільЩодоВаги="Збільшення",G83-H83,H83-G83),"") -> 499 | J83: 16569 | K83: =IFERROR(IF(Звичайний,J83/КалоріїНаФунт,J83/КалоріїНаФунт/2.2),"") -> 4.7 | L83: =IFERROR(ВагаДляСхудненняНабору-K83,"") -> 10.27 | M83: =IFERROR(IF(B82<>"",L83/(ВагаДляСхудненняНабору),""),"") -> 68%
B84: 2022-10-26 | D84: 74 | E84: 139.6 | F84: =IFERROR(АктивнийBMR,"") -> 1408 | G84: =IFERROR(IF(K83>0,F83*ФакторАктивності+IF(ЦільЩодоВаги="Підтримання",0,IF(ЦільЩодоВаги="ЗМЕНШИЛАСЯ",-500,IF(ЦільЩодоВаги="Збільшення",500))),""),"") -> 1683 | H84: =IFERROR(F84*(ФакторАктивності),"") -> 2182 | I84: =IFERROR(IF(ЦільЩодоВаги="Збільшення",G84-H84,H84-G84),"") -> 499 | J84: 16070 | K84: =IFERROR(IF(Звичайний,J84/КалоріїНаФунт,J84/КалоріїНаФунт/2.2),"") -> 4.6 | L84: =IFERROR(ВагаДляСхудненняНабору-K84,"") -> 10.41 | M84: =IFERROR(IF(B83<>"",L84/(ВагаДляСхудненняНабору),""),"") -> 69%
B85: 2022-10-27 | D85: 75 | E85: 139.4 | F85: =IFERROR(АктивнийBMR,"") -> 1407 | G85: =IFERROR(IF(K84>0,F84*ФакторАктивності+IF(ЦільЩодоВаги="Підтримання",0,IF(ЦільЩодоВаги="ЗМЕНШИЛАСЯ",-500,IF(ЦільЩодоВаги="Збільшення",500))),""),"") -> 1682 | H85: =IFERROR(F85*(ФакторАктивності),"") -> 2181 | I85: =IFERROR(IF(ЦільЩодоВаги="Збільшення",G85-H85,H85-G85),"") -> 499 | J85: 15571 | K85: =IFERROR(IF(Звичайний,J85/КалоріїНаФунт,J85/КалоріїНаФунт/2.2),"") -> 4.4 | L85: =IFERROR(ВагаДляСхудненняНабору-K85,"") -> 10.55 | M85: =IFERROR(IF(B84<>"",L85/(ВагаДляСхудненняНабору),""),"") -> 70%
B86: 2022-10-28 | D86: 76 | E86: 139.3 | F86: =IFERROR(АктивнийBMR,"") -> 1407 | G86: =IFERROR(IF(K85>0,F85*ФакторАктивності+IF(ЦільЩодоВаги="Підтримання",0,IF(ЦільЩодоВаги="ЗМЕНШИЛАСЯ",-500,IF(ЦільЩодоВаги="Збільшення",500))),""),"") -> 1681 | H86: =IFERROR(F86*(ФакторАктивності),"") -> 2180 | I86: =IFERROR(IF(ЦільЩодоВаги="Збільшення",G86-H86,H86-G86),"") -> 499 | J86: 15072 | K86: =IFERROR(IF(Звичайний,J86/КалоріїНаФунт,J86/КалоріїНаФунт/2.2),"") -> 4.3 | L86: =IFERROR(ВагаДляСхудненняНабору-K86,"") -> 10.69 | M86: =IFERROR(IF(B85<>"",L86/(ВагаДляСхудненняНабору),""),"") -> 71%
B87: 2022-10-29 | D87: 77 | E87: 139.2 | F87: =IFERROR(АктивнийBMR,"") -> 1406 | G87: =IFERROR(IF(K86>0,F86*ФакторАктивності+IF(ЦільЩодоВаги="Підтримання",0,IF(ЦільЩодоВаги="ЗМЕНШИЛАСЯ",-500,IF(ЦільЩодоВаги="Збільшення",500))),""),"") -> 1680 | H87: =IFERROR(F87*(ФакторАктивності),"") -> 2179 | I87: =IFERROR(IF(ЦільЩодоВаги="Збільшення",G87-H87,H87-G87),"") -> 499 | J87: 14573 | K87: =IFERROR(IF(Звичайний,J87/КалоріїНаФунт,J87/КалоріїНаФунт/2.2),"") -> 4.2 | L87: =IFERROR(ВагаДляСхудненняНабору-K87,"") -> 10.84 | M87: =IFERROR(IF(B86<>"",L87/(ВагаДляСхудненняНабору),""),"") -> 72%
B88: 2022-10-30 | C88: 12 | D88: 78 | E88: 139.0 | F88: =IFERROR(АктивнийBMR,"") -> 1405 | G88: =IFERROR(IF(K87>0,F87*ФакторАктивності+IF(ЦільЩодоВаги="Підтримання",0,IF(ЦільЩодоВаги="ЗМЕНШИЛАСЯ",-500,IF(ЦільЩодоВаги="Збільшення",500))),""),"") -> 1679 | H88: =IFERROR(F88*(ФакторАктивності),"") -> 2178 | I88: =IFERROR(IF(ЦільЩодоВаги="Збільшення",G88-H88,H88-G88),"") -> 499 | J88: 14074 | K88: =IFERROR(IF(Звичайний,J88/КалоріїНаФунт,J88/КалоріїНаФунт/2.2),"") -> 4.0 | L88: =IFERROR(ВагаДляСхудненняНабору-K88,"") -> 10.98 | M88: =IFERROR(IF(B87<>"",L88/(ВагаДляСхудненняНабору),""),"") -> 73%
B89: 2022-10-31 | D89: 79 | E89: 138.9 | F89: =IFERROR(АктивнийBMR,"") -> 1405 | G89: =IFERROR(IF(K88>0,F88*ФакторАктивності+IF(ЦільЩодоВаги="Підтримання",0,IF(ЦільЩодоВаги="ЗМЕНШИЛАСЯ",-500,IF(ЦільЩодоВаги="Збільшення",500))),""),"") -> 1678 | H89: =IFERROR(F89*(ФакторАктивності),"") -> 2177 | I89: =IFERROR(IF(ЦільЩодоВаги="Збільшення",G89-H89,H89-G89),"") -> 499 | J89: 13575 | K89: =IFERROR(IF(Звичайний,J89/КалоріїНаФунт,J89/КалоріїНаФунт/2.2),"") -> 3.9 | L89: =IFERROR(ВагаДляСхудненняНабору-K89,"") -> 11.12 | M89: =IFERROR(IF(B88<>"",L89/(ВагаДляСхудненняНабору),""),"") -> 74%
B90: 2022-11-01 | D90: 80 | E90: 138.7 | F90: =IFERROR(АктивнийBMR,"") -> 1404 | G90: =IFERROR(IF(K89>0,F89*ФакторАктивності+IF(ЦільЩодоВаги="Підтримання",0,IF(ЦільЩодоВаги="ЗМЕНШИЛАСЯ",-500,IF(ЦільЩодоВаги="Збільшення",500))),""),"") -> 1677 | H90: =IFERROR(F90*(ФакторАктивності),"") -> 2177 | I90: =IFERROR(IF(ЦільЩодоВаги="Збільшення",G90-H90,H90-G90),"") -> 499 | J90: 13076 | K90: =IFERROR(IF(Звичайний,J90/КалоріїНаФунт,J90/КалоріїНаФунт/2.2),"") -> 3.7 | L90: =IFERROR(ВагаДляСхудненняНабору-K90,"") -> 11.26 | M90: =IFERROR(IF(B89<>"",L90/(ВагаДляСхудненняНабору),""),"") -> 75%
B91: 2022-11-02 | D91: 81 | E91: 138.6 | F91: =IFERROR(АктивнийBMR,"") -> 1404 | G91: =IFERROR(IF(K90>0,F90*ФакторАктивності+IF(ЦільЩодоВаги="Підтримання",0,IF(ЦільЩодоВаги="ЗМЕНШИЛАСЯ",-500,IF(ЦільЩодоВаги="Збільшення",500))),""),"") -> 1677 | H91: =IFERROR(F91*(ФакторАктивності),"") -> 2176 | I91: =IFERROR(IF(ЦільЩодоВаги="Збільшення",G91-H91,H91-G91),"") -> 499 | J91: 12577 | K91: =IFERROR(IF(Звичайний,J91/КалоріїНаФунт,J91/КалоріїНаФунт/2.2),"") -> 3.6 | L91: =IFERROR(ВагаДляСхудненняНабору-K91,"") -> 11.41 | M91: =IFERROR(IF(B90<>"",L91/(ВагаДляСхудненняНабору),""),"") -> 76%
B92: 2022-11-03 | D92: 82 | E92: 138.5 | F92: =IFERROR(АктивнийBMR,"") -> 1403 | G92: =IFERROR(IF(K91>0,F91*ФакторАктивності+IF(ЦільЩодоВаги="Підтримання",0,IF(ЦільЩодоВаги="ЗМЕНШИЛАСЯ",-500,IF(ЦільЩодоВаги="Збільшення",500))),""),"") -> 1676 | H92: =IFERROR(F92*(ФакторАктивності),"") -> 2175 | I92: =IFERROR(IF(ЦільЩодоВаги="Збільшення",G92-H92,H92-G92),"") -> 499 | J92: 12078 | K92: =IFERROR(IF(Звичайний,J92/КалоріїНаФунт,J92/КалоріїНаФунт/2.2),"") -> 3.5 | L92: =IFERROR(ВагаДляСхудненняНабору-K92,"") -> 11.55 | M92: =IFERROR(IF(B91<>"",L92/(ВагаДляСхудненняНабору),""),"") -> 77%
B93: 2022-11-04 | D93: 83 | E93: 138.3 | F93: =IFERROR(АктивнийBMR,"") -> 1402 | G93: =IFERROR(IF(K92>0,F92*ФакторАктивності+IF(ЦільЩодоВаги="Підтримання",0,IF(ЦільЩодоВаги="ЗМЕНШИЛАСЯ",-500,IF(ЦільЩодоВаги="Збільшення",500))),""),"") -> 1675 | H93: =IFERROR(F93*(ФакторАктивності),"") -> 2174 | I93: =IFERROR(IF(ЦільЩодоВаги="Збільшення",G93-H93,H93-G93),"") -> 499 | J93: 11579 | K93: =IFERROR(IF(Звичайний,J93/КалоріїНаФунт,J93/КалоріїНаФунт/2.2),"") -> 3.3 | L93: =IFERROR(ВагаДляСхудненняНабору-K93,"") -> 11.69 | M93: =IFERROR(IF(B92<>"",L93/(ВагаДляСхудненняНабору),""),"") -> 78%
B94: 2022-11-05 | D94: 84 | E94: 138.2 | F94: =IFERROR(АктивнийBMR,"") -> 1402 | G94: =IFERROR(IF(K93>0,F93*ФакторАктивності+IF(ЦільЩодоВаги="Підтримання",0,IF(ЦільЩодоВаги="ЗМЕНШИЛАСЯ",-500,IF(ЦільЩодоВаги="Збільшення",500))),""),"") -> 1674 | H94: =IFERROR(F94*(ФакторАктивності),"") -> 2173 | I94: =IFERROR(IF(ЦільЩодоВаги="Збільшення",G94-H94,H94-G94),"") -> 499 | J94: 11080 | K94: =IFERROR(IF(Звичайний,J94/КалоріїНаФунт,J94/КалоріїНаФунт/2.2),"") -> 3.2 | L94: =IFERROR(ВагаДляСхудненняНабору-K94,"") -> 11.83 | M94: =IFERROR(IF(B93<>"",L94/(ВагаДляСхудненняНабору),""),"") -> 79%
B95: 2022-11-06 | C95: 13 | D95: 85 | E95: 138.0 | F95: =IFERROR(АктивнийBMR,"") -> 1401 | G95: =IFERROR(IF(K94>0,F94*ФакторАктивності+IF(ЦільЩодоВаги="Підтримання",0,IF(ЦільЩодоВаги="ЗМЕНШИЛАСЯ",-500,IF(ЦільЩодоВаги="Збільшення",500))),""),"") -> 1673 | H95: =IFERROR(F95*(ФакторАктивності),"") -> 2172 | I95: =IFERROR(IF(ЦільЩодоВаги="Збільшення",G95-H95,H95-G95),"") -> 499 | J95: 10581 | K95: =IFERROR(IF(Звичайний,J95/КалоріїНаФунт,J95/КалоріїНаФунт/2.2),"") -> 3.0 | L95: =IFERROR(ВагаДляСхудненняНабору-K95,"") -> 11.98 | M95: =IFERROR(IF(B94<>"",L95/(ВагаДляСхудненняНабору),""),"") -> 80%
B96: 2022-11-07 | D96: 86 | E96: 137.9 | F96: =IFERROR(АктивнийBMR,"") -> 1400 | G96: =IFERROR(IF(K95>0,F95*ФакторАктивності+IF(ЦільЩодоВаги="Підтримання",0,IF(ЦільЩодоВаги="ЗМЕНШИЛАСЯ",-500,IF(ЦільЩодоВаги="Збільшення",500))),""),"") -> 1672 | H96: =IFERROR(F96*(ФакторАктивності),"") -> 2171 | I96: =IFERROR(IF(ЦільЩодоВаги="Збільшення",G96-H96,H96-G96),"") -> 499 | J96: 10082 | K96: =IFERROR(IF(Звичайний,J96/КалоріїНаФунт,J96/КалоріїНаФунт/2.2),"") -> 2.9 | L96: =IFERROR(ВагаДляСхудненняНабору-K96,"") -> 12.12 | M96: =IFERROR(IF(B95<>"",L96/(ВагаДляСхудненняНабору),""),"") -> 81%
B97: 2022-11-08 | D97: 87 | E97: 137.7 | F97: =IFERROR(АктивнийBMR,"") -> 1400 | G97: =IFERROR(IF(K96>0,F96*ФакторАктивності+IF(ЦільЩодоВаги="Підтримання",0,IF(ЦільЩодоВаги="ЗМЕНШИЛАСЯ",-500,IF(ЦільЩодоВаги="Збільшення",500))),""),"") -> 1671 | H97: =IFERROR(F97*(ФакторАктивності),"") -> 2170 | I97: =IFERROR(IF(ЦільЩодоВаги="Збільшення",G97-H97,H97-G97),"") -> 499 | J97: 9583 | K97: =IFERROR(IF(Звичайний,J97/КалоріїНаФунт,J97/КалоріїНаФунт/2.2),"") -> 2.7 | L97: =IFERROR(ВагаДляСхудненняНабору-K97,"") -> 12.26 | M97: =IFERROR(IF(B96<>"",L97/(ВагаДляСхудненняНабору),""),"") -> 82%
B98: 2022-11-09 | D98: 88 | E98: 137.6 | F98: =IFERROR(АктивнийBMR,"") -> 1399 | G98: =IFERROR(IF(K97>0,F97*ФакторАктивності+IF(ЦільЩодоВаги="Підтримання",0,IF(ЦільЩодоВаги="ЗМЕНШИЛАСЯ",-500,IF(ЦільЩодоВаги="Збільшення",500))),""),"") -> 1670 | H98: =IFERROR(F98*(ФакторАктивності),"") -> 2169 | I98: =IFERROR(IF(ЦільЩодоВаги="Збільшення",G98-H98,H98-G98),"") -> 499 | J98: 9084 | K98: =IFERROR(IF(Звичайний,J98/КалоріїНаФунт,J98/КалоріїНаФунт/2.2),"") -> 2.6 | L98: =IFERROR(ВагаДляСхудненняНабору-K98,"") -> 12.40 | M98: =IFERROR(IF(B97<>"",L98/(ВагаДляСхудненняНабору),""),"") -> 83%
B99: 2022-11-10 | D99: 89 | E99: 137.5 | F99: =IFERROR(АктивнийBMR,"") -> 1399 | G99: =IFERROR(IF(K98>0,F98*ФакторАктивності+IF(ЦільЩодоВаги="Підтримання",0,IF(ЦільЩодоВаги="ЗМЕНШИЛАСЯ",-500,IF(ЦільЩодоВаги="Збільшення",500))),""),"") -> 1669 | H99: =IFERROR(F99*(ФакторАктивності),"") -> 2168 | I99: =IFERROR(IF(ЦільЩодоВаги="Збільшення",G99-H99,H99-G99),"") -> 499 | J99: 8585 | K99: =IFERROR(IF(Звичайний,J99/КалоріїНаФунт,J99/КалоріїНаФунт/2.2),"") -> 2.5 | L99: =IFERROR(ВагаДляСхудненняНабору-K99,"") -> 12.55 | M99: =IFERROR(IF(B98<>"",L99/(ВагаДляСхудненняНабору),""),"") -> 84%
B100: 2022-11-11 | D100: 90 | E100: 137.3 | F100: =IFERROR(АктивнийBMR,"") -> 1398 | G100: =IFERROR(IF(K99>0,F99*ФакторАктивності+IF(ЦільЩодоВаги="Підтримання",0,IF(ЦільЩодоВаги="ЗМЕНШИЛАСЯ",-500,IF(ЦільЩодоВаги="Збільшення",500))),""),"") -> 1668 | H100: =IFERROR(F100*(ФакторАктивності),"") -> 2167 | I100: =IFERROR(IF(ЦільЩодоВаги="Збільшення",G100-H100,H100-G100),"") -> 499 | J100: 8086 | K100: =IFERROR(IF(Звичайний,J100/КалоріїНаФунт,J100/КалоріїНаФунт/2.2),"") -> 2.3 | L100: =IFERROR(ВагаДляСхудненняНабору-K100,"") -> 12.69 | M100: =IFERROR(IF(B99<>"",L100/(ВагаДляСхудненняНабору),""),"") -> 85%
B101: 2022-11-12 | D101: 91 | E101: 137.2 | F101: =IFERROR(АктивнийBMR,"") -> 1397 | G101: =IFERROR(IF(K100>0,F100*ФакторАктивності+IF(ЦільЩодоВаги="Підтримання",0,IF(ЦільЩодоВаги="ЗМЕНШИЛАСЯ",-500,IF(ЦільЩодоВаги="Збільшення",500))),""),"") -> 1667 | H101: =IFERROR(F101*(ФакторАктивності),"") -> 2166 | I101: =IFERROR(IF(ЦільЩодоВаги="Збільшення",G101-H101,H101-G101),"") -> 499 | J101: 7587 | K101: =IFERROR(IF(Звичайний,J101/КалоріїНаФунт,J101/КалоріїНаФунт/2.2),"") -> 2.2 | L101: =IFERROR(ВагаДляСхудненняНабору-K101,"") -> 12.83 | M101: =IFERROR(IF(B100<>"",L101/(ВагаДляСхудненняНабору),""),"") -> 86%
B102: 2022-11-13 | C102: 14 | D102: 92 | E102: 137.0 | F102: =IFERROR(АктивнийBMR,"") -> 1397 | G102: =IFERROR(IF(K101>0,F101*ФакторАктивності+IF(ЦільЩодоВаги="Підтримання",0,IF(ЦільЩодоВаги="ЗМЕНШИЛАСЯ",-500,IF(ЦільЩодоВаги="Збільшення",500))),""),"") -> 1666 | H102: =IFERROR(F102*(ФакторАктивності),"") -> 2165 | I102: =IFERROR(IF(ЦільЩодоВаги="Збільшення",G102-H102,H102-G102),"") -> 499 | J102: 7087 | K102: =IFERROR(IF(Звичайний,J102/КалоріїНаФунт,J102/КалоріїНаФунт/2.2),"") -> 2.0 | L102: =IFERROR(ВагаДляСхудненняНабору-K102,"") -> 12.98 | M102: =IFERROR(IF(B101<>"",L102/(ВагаДляСхудненняНабору),""),"") -> 87%
B103: 2022-11-14 | D103: 93 | E103: 136.9 | F103: =IFERROR(АктивнийBMR,"") -> 1396 | G103: =IFERROR(IF(K102>0,F102*ФакторАктивності+IF(ЦільЩодоВаги="Підтримання",0,IF(ЦільЩодоВаги="ЗМЕНШИЛАСЯ",-500,IF(ЦільЩодоВаги="Збільшення",500))),""),"") -> 1665 | H103: =IFERROR(F103*(ФакторАктивності),"") -> 2164 | I103: =IFERROR(IF(ЦільЩодоВаги="Збільшення",G103-H103,H103-G103),"") -> 499 | J103: 6588 | K103: =IFERROR(IF(Звичайний,J103/КалоріїНаФунт,J103/КалоріїНаФунт/2.2),"") -> 1.9 | L103: =IFERROR(ВагаДляСхудненняНабору-K103,"") -> 13.12 | M103: =IFERROR(IF(B102<>"",L103/(ВагаДляСхудненняНабору),""),"") -> 87%
B104: 2022-11-15 | D104: 94 | E104: 136.7 | F104: =IFERROR(АктивнийBMR,"") -> 1396 | G104: =IFERROR(IF(K103>0,F103*ФакторАктивності+IF(ЦільЩодоВаги="Підтримання",0,IF(ЦільЩодоВаги="ЗМЕНШИЛАСЯ",-500,IF(ЦільЩодоВаги="Збільшення",500))),""),"") -> 1664 | H104: =IFERROR(F104*(ФакторАктивності),"") -> 2163 | I104: =IFERROR(IF(ЦільЩодоВаги="Збільшення",G104-H104,H104-G104),"") -> 499 | J104: 6089 | K104: =IFERROR(IF(Звичайний,J104/КалоріїНаФунт,J104/КалоріїНаФунт/2.2),"") -> 1.7 | L104: =IFERROR(ВагаДляСхудненняНабору-K104,"") -> 13.26 | M104: =IFERROR(IF(B103<>"",L104/(ВагаДляСхудненняНабору),""),"") -> 88%
B105: 2022-11-16 | D105: 95 | E105: 136.6 | F105: =IFERROR(АктивнийBMR,"") -> 1395 | G105: =IFERROR(IF(K104>0,F104*ФакторАктивності+IF(ЦільЩодоВаги="Підтримання",0,IF(ЦільЩодоВаги="ЗМЕНШИЛАСЯ",-500,IF(ЦільЩодоВаги="Збільшення",500))),""),"") -> 1663 | H105: =IFERROR(F105*(ФакторАктивності),"") -> 2162 | I105: =IFERROR(IF(ЦільЩодоВаги="Збільшення",G105-H105,H105-G105),"") -> 499 | J105: 5590 | K105: =IFERROR(IF(Звичайний,J105/КалоріїНаФунт,J105/КалоріїНаФунт/2.2),"") -> 1.6 | L105: =IFERROR(ВагаДляСхудненняНабору-K105,"") -> 13.40 | M105: =IFERROR(IF(B104<>"",L105/(ВагаДляСхудненняНабору),""),"") -> 89%
B106: 2022-11-17 | D106: 96 | E106: 136.5 | F106: =IFERROR(АктивнийBMR,"") -> 1394 | G106: =IFERROR(IF(K105>0,F105*ФакторАктивності+IF(ЦільЩодоВаги="Підтримання",0,IF(ЦільЩодоВаги="ЗМЕНШИЛАСЯ",-500,IF(ЦільЩодоВаги="Збільшення",500))),""),"") -> 1662 | H106: =IFERROR(F106*(ФакторАктивності),"") -> 2161 | I106: =IFERROR(IF(ЦільЩодоВаги="Збільшення",G106-H106,H106-G106),"") -> 499 | J106: 5091 | K106: =IFERROR(IF(Звичайний,J106/КалоріїНаФунт,J106/КалоріїНаФунт/2.2),"") -> 1.5 | L106: =IFERROR(ВагаДляСхудненняНабору-K106,"") -> 13.55 | M106: =IFERROR(IF(B105<>"",L106/(ВагаДляСхудненняНабору),""),"") -> 90%
B107: 2022-11-18 | D107: 97 | E107: 136.3 | F107: =IFERROR(АктивнийBMR,"") -> 1394 | G107: =IFERROR(IF(K106>0,F106*ФакторАктивності+IF(ЦільЩодоВаги="Підтримання",0,IF(ЦільЩодоВаги="ЗМЕНШИЛАСЯ",-500,IF(ЦільЩодоВаги="Збільшення",500))),""),"") -> 1661 | H107: =IFERROR(F107*(ФакторАктивності),"") -> 2160 | I107: =IFERROR(IF(ЦільЩодоВаги="Збільшення",G107-H107,H107-G107),"") -> 499 | J107: 4592 | K107: =IFERROR(IF(Звичайний,J107/КалоріїНаФунт,J107/КалоріїНаФунт/2.2),"") -> 1.3 | L107: =IFERROR(ВагаДляСхудненняНабору-K107,"") -> 13.69 | M107: =IFERROR(IF(B106<>"",L107/(ВагаДляСхудненняНабору),""),"") -> 91%
B108: 2022-11-19 | D108: 98 | E108: 136.2 | F108: =IFERROR(АктивнийBMR,"") -> 1393 | G108: =IFERROR(IF(K107>0,F107*ФакторАктивності+IF(ЦільЩодоВаги="Підтримання",0,IF(ЦільЩодоВаги="ЗМЕНШИЛАСЯ",-500,IF(ЦільЩодоВаги="Збільшення",500))),""),"") -> 1660 | H108: =IFERROR(F108*(ФакторАктивності),"") -> 2159 | I108: =IFERROR(IF(ЦільЩодоВаги="Збільшення",G108-H108,H108-G108),"") -> 499 | J108: 4093 | K108: =IFERROR(IF(Звичайний,J108/КалоріїНаФунт,J108/КалоріїНаФунт/2.2),"") -> 1.2 | L108: =IFERROR(ВагаДляСхудненняНабору-K108,"") -> 13.83 | M108: =IFERROR(IF(B107<>"",L108/(ВагаДляСхудненняНабору),""),"") -> 92%
B109: 2022-11-20 | C109: 15 | D109: 99 | E109: 136.0 | F109: =IFERROR(АктивнийBMR,"") -> 1392 | G109: =IFERROR(IF(K108>0,F108*ФакторАктивності+IF(ЦільЩодоВаги="Підтримання",0,IF(ЦільЩодоВаги="ЗМЕНШИЛАСЯ",-500,IF(ЦільЩодоВаги="Збільшення",500))),""),"") -> 1659 | H109: =IFERROR(F109*(ФакторАктивності),"") -> 2158 | I109: =IFERROR(IF(ЦільЩодоВаги="Збільшення",G109-H109,H109-G109),"") -> 499 | J109: 3594 | K109: =IFERROR(IF(Звичайний,J109/КалоріїНаФунт,J109/КалоріїНаФунт/2.2),"") -> 1.0 | L109: =IFERROR(ВагаДляСхудненняНабору-K109,"") -> 13.97 | M109: =IFERROR(IF(B108<>"",L109/(ВагаДляСхудненняНабору),""),"") -> 93%
B110: 2022-11-21 | D110: 100 | E110: 135.9 | F110: =IFERROR(АктивнийBMR,"") -> 1392 | G110: =IFERROR(IF(K109>0,F109*ФакторАктивності+IF(ЦільЩодоВаги="Підтримання",0,IF(ЦільЩодоВаги="ЗМЕНШИЛАСЯ",-500,IF(ЦільЩодоВаги="Збільшення",500))),""),"") -> 1658 | H110: =IFERROR(F110*(ФакторАктивності),"") -> 2157 | I110: =IFERROR(IF(ЦільЩодоВаги="Збільшення",G110-H110,H110-G110),"") -> 499 | J110: 3095 | K110: =IFERROR(IF(Звичайний,J110/КалоріїНаФунт,J110/КалоріїНаФунт/2.2),"") -> 0.9 | L110: =IFERROR(ВагаДляСхудненняНабору-K110,"") -> 14.12 | M110: =IFERROR(IF(B109<>"",L110/(ВагаДляСхудненняНабору),""),"") -> 94%
B111: 2022-11-22 | D111: 101 | E111: 135.7 | F111: =IFERROR(АктивнийBMR,"") -> 1391 | G111: =IFERROR(IF(K110>0,F110*ФакторАктивності+IF(ЦільЩодоВаги="Підтримання",0,IF(ЦільЩодоВаги="ЗМЕНШИЛАСЯ",-500,IF(ЦільЩодоВаги="Збільшення",500))),""),"") -> 1657 | H111: =IFERROR(F111*(ФакторАктивності),"") -> 2156 | I111: =IFERROR(IF(ЦільЩодоВаги="Збільшення",G111-H111,H111-G111),"") -> 499 | J111: 2596 | K111: =IFERROR(IF(Звичайний,J111/КалоріїНаФунт,J111/КалоріїНаФунт/2.2),"") -> 0.7 | L111: =IFERROR(ВагаДляСхудненняНабору-K111,"") -> 14.26 | M111: =IFERROR(IF(B110<>"",L111/(ВагаДляСхудненняНабору),""),"") -> 95%
B112: 2022-11-23 | D112: 102 | E112: 135.6 | F112: =IFERROR(АктивнийBMR,"") -> 1391 | G112: =IFERROR(IF(K111>0,F111*ФакторАктивності+IF(ЦільЩодоВаги="Підтримання",0,IF(ЦільЩодоВаги="ЗМЕНШИЛАСЯ",-500,IF(ЦільЩодоВаги="Збільшення",500))),""),"") -> 1656 | H112: =IFERROR(F112*(ФакторАктивності),"") -> 2155 | I112: =IFERROR(IF(ЦільЩодоВаги="Збільшення",G112-H112,H112-G112),"") -> 499 | J112: 2097 | K112: =IFERROR(IF(Звичайний,J112/КалоріїНаФунт,J112/КалоріїНаФунт/2.2),"") -> 0.6 | L112: =IFERROR(ВагаДляСхудненняНабору-K112,"") -> 14.40 | M112: =IFERROR(IF(B111<>"",L112/(ВагаДляСхудненняНабору),""),"") -> 96%
B113: 2022-11-24 | D113: 103 | E113: 135.5 | F113: =IFERROR(АктивнийBMR,"") -> 1390 | G113: =IFERROR(IF(K112>0,F112*ФакторАктивності+IF(ЦільЩодоВаги="Підтримання",0,IF(ЦільЩодоВаги="ЗМЕНШИЛАСЯ",-500,IF(ЦільЩодоВаги="Збільшення",500))),""),"") -> 1655 | H113: =IFERROR(F113*(ФакторАктивності),"") -> 2154 | I113: =IFERROR(IF(ЦільЩодоВаги="Збільшення",G113-H113,H113-G113),"") -> 499 | J113: 1598 | K113: =IFERROR(IF(Звичайний,J113/КалоріїНаФунт,J113/КалоріїНаФунт/2.2),"") -> 0.5 | L113: =IFERROR(ВагаДляСхудненняНабору-K113,"") -> 14.54 | M113: =IFERROR(IF(B112<>"",L113/(ВагаДляСхудненняНабору),""),"") -> 97%
B114: 2022-11-25 | D114: 104 | E114: 135.3 | F114: =IFERROR(АктивнийBMR,"") -> 1389 | G114: =IFERROR(IF(K113>0,F113*ФакторАктивності+IF(ЦільЩодоВаги="Підтримання",0,IF(ЦільЩодоВаги="ЗМЕНШИЛАСЯ",-500,IF(ЦільЩодоВаги="Збільшення",500))),""),"") -> 1654 | H114: =IFERROR(F114*(ФакторАктивності),"") -> 2153 | I114: =IFERROR(IF(ЦільЩодоВаги="Збільшення",G114-H114,H114-G114),"") -> 499 | J114: 1099 | K114: =IFERROR(IF(Звичайний,J114/КалоріїНаФунт,J114/КалоріїНаФунт/2.2),"") -> 0.3 | L114: =IFERROR(ВагаДляСхудненняНабору-K114,"") -> 14.69 | M114: =IFERROR(IF(B113<>"",L114/(ВагаДляСхудненняНабору),""),"") -> 98%
B115: 2022-11-26 | D115: 105 | E115: 135.2 | F115: =IFERROR(АктивнийBMR,"") -> 1389 | G115: =IFERROR(IF(K114>0,F114*ФакторАктивності+IF(ЦільЩодоВаги="Підтримання",0,IF(ЦільЩодоВаги="ЗМЕНШИЛАСЯ",-500,IF(ЦільЩодоВаги="Збільшення",500))),""),"") -> 1653 | H115: =IFERROR(F115*(ФакторАктивності),"") -> 2152 | I115: =IFERROR(IF(ЦільЩодоВаги="Збільшення",G115-H115,H115-G115),"") -> 499 | J115: 600 | K115: =IFERROR(IF(Звичайний,J115/КалоріїНаФунт,J115/КалоріїНаФунт/2.2),"") -> 0.2 | L115: =IFERROR(ВагаДляСхудненняНабору-K115,"") -> 14.83 | M115: =IFERROR(IF(B114<>"",L115/(ВагаДляСхудненняНабору),""),"") -> 99%
B116: 2022-11-27 | C116: 16 | D116: 106 | E116: 135.0 | F116: =IFERROR(АктивнийBMR,"") -> 1388 | G116: =IFERROR(IF(K115>0,F115*ФакторАктивності+IF(ЦільЩодоВаги="Підтримання",0,IF(ЦільЩодоВаги="ЗМЕНШИЛАСЯ",-500,IF(ЦільЩодоВаги="Збільшення",500))),""),"") -> 1652 | H116: =IFERROR(F116*(ФакторАктивності),"") -> 2152 | I116: =IFERROR(IF(ЦільЩодоВаги="Збільшення",G116-H116,H116-G116),"") -> 499 | J116: 101 | K116: =IFERROR(IF(Звичайний,J116/КалоріїНаФунт,J116/КалоріїНаФунт/2.2),"") -> 0.0 | L116: =IFERROR(ВагаДляСхудненняНабору-K116,"") -> 14.97 | M116: =IFERROR(IF(B115<>"",L116/(ВагаДляСхудненняНабору),""),"") -> 100%
B117: 2022-11-28 | D117: 107 | E117: 134.9 | F117: =IFERROR(АктивнийBMR,"") -> 1387 | G117: =IFERROR(IF(K116>0,F116*ФакторАктивності+IF(ЦільЩодоВаги="Підтримання",0,IF(ЦільЩодоВаги="ЗМЕНШИЛАСЯ",-500,IF(ЦільЩодоВаги="Збільшення",500))),""),"") -> 1652 | H117: =IFERROR(F117*(ФакторАктивності),"") -> 2151 | I117: =IFERROR(IF(ЦільЩодоВаги="Збільшення",G117-H117,H117-G117),"") -> 499 | J117: -398 | K117: =IFERROR(IF(Звичайний,J117/КалоріїНаФунт,J117/КалоріїНаФунт/2.2),"") -> -0.1 | L117: =IFERROR(ВагаДляСхудненняНабору-K117,"") -> 15.11 | M117: =IFERROR(IF(B116<>"",L117/(ВагаДляСхудненняНабору),""),"") -> 101%
F118: =IFERROR(АктивнийBMR,"") ->  | G118: =IFERROR(IF(K117>0,F117*ФакторАктивності+IF(ЦільЩодоВаги="Підтримання",0,IF(ЦільЩодоВаги="ЗМЕНШИЛАСЯ",-500,IF(ЦільЩодоВаги="Збільшення",500))),""),"") ->  | H118: =IFERROR(F118*(ФакторАктивності),"") ->  | I118: =IFERROR(IF(ЦільЩодоВаги="Збільшення",G118-H118,H118-G118),"") ->  | K118: =IFERROR(IF(Звичайний,J118/КалоріїНаФунт,J118/КалоріїНаФунт/2.2),"") ->  | L118: =IFERROR(ВагаДляСхудненняНабору-K118,"") ->  | M118: =IFERROR(IF(B117<>"",L118/(ВагаДляСхудненняНабору),""),"") -> 
F119: =IFERROR(АктивнийBMR,"") ->  | G119: =IFERROR(IF(K118>0,F118*ФакторАктивності+IF(ЦільЩодоВаги="Підтримання",0,IF(ЦільЩодоВаги="ЗМЕНШИЛАСЯ",-500,IF(ЦільЩодоВаги="Збільшення",500))),""),"") ->  | H119: =IFERROR(F119*(ФакторАктивності),"") ->  | I119: =IFERROR(IF(ЦільЩодоВаги="Збільшення",G119-H119,H119-G119),"") ->  | K119: =IFERROR(IF(Звичайний,J119/КалоріїНаФунт,J119/КалоріїНаФунт/2.2),"") ->  | L119: =IFERROR(ВагаДляСхудненняНабору-K119,"") ->  | M119: =IFERROR(IF(B118<>"",L119/(ВагаДляСхудненняНабору),""),"") -> 
F120: =IFERROR(АктивнийBMR,"") ->  | G120: =IFERROR(IF(K119>0,F119*ФакторАктивності+IF(ЦільЩодоВаги="Підтримання",0,IF(ЦільЩодоВаги="ЗМЕНШИЛАСЯ",-500,IF(ЦільЩодоВаги="Збільшення",500))),""),"") ->  | H120: =IFERROR(F120*(ФакторАктивності),"") ->  | I120: =IFERROR(IF(ЦільЩодоВаги="Збільшення",G120-H120,H120-G120),"") ->  | K120: =IFERROR(IF(Звичайний,J120/КалоріїНаФунт,J120/КалоріїНаФунт/2.2),"") ->  | L120: =IFERROR(ВагаДляСхудненняНабору-K120,"") ->  | M120: =IFERROR(IF(B119<>"",L120/(ВагаДляСхудненняНабору),""),"") -> 
F121: =IFERROR(АктивнийBMR,"") ->  | G121: =IFERROR(IF(K120>0,F120*ФакторАктивності+IF(ЦільЩодоВаги="Підтримання",0,IF(ЦільЩодоВаги="ЗМЕНШИЛАСЯ",-500,IF(ЦільЩодоВаги="Збільшення",500))),""),"") ->  | H121: =IFERROR(F121*(ФакторАктивності),"") ->  | I121: =IFERROR(IF(ЦільЩодоВаги="Збільшення",G121-H121,H121-G121),"") ->  | K121: =IFERROR(IF(Звичайний,J121/КалоріїНаФунт,J121/КалоріїНаФунт/2.2),"") ->  | L121: =IFERROR(ВагаДляСхудненняНабору-K121,"") ->  | M121: =IFERROR(IF(B120<>"",L121/(ВагаДляСхудненняНабору),""),"") -> 
F122: =IFERROR(АктивнийBMR,"") ->  | G122: =IFERROR(IF(K121>0,F121*ФакторАктивності+IF(ЦільЩодоВаги="Підтримання",0,IF(ЦільЩодоВаги="ЗМЕНШИЛАСЯ",-500,IF(ЦільЩодоВаги="Збільшення",500))),""),"") ->  | H122: =IFERROR(F122*(ФакторАктивності),"") ->  | I122: =IFERROR(IF(ЦільЩодоВаги="Збільшення",G122-H122,H122-G122),"") ->  | K122: =IFERROR(IF(Звичайний,J122/КалоріїНаФунт,J122/КалоріїНаФунт/2.2),"") ->  | L122: =IFERROR(ВагаДляСхудненняНабору-K122,"") ->  | M122: =IFERROR(IF(B121<>"",L122/(ВагаДляСхудненняНабору),""),"") -> 
F123: =IFERROR(АктивнийBMR,"") ->  | G123: =IFERROR(IF(K122>0,F122*ФакторАктивності+IF(ЦільЩодоВаги="Підтримання",0,IF(ЦільЩодоВаги="ЗМЕНШИЛАСЯ",-500,IF(ЦільЩодоВаги="Збільшення",500))),""),"") ->  | H123: =IFERROR(F123*(ФакторАктивності),"") ->  | I123: =IFERROR(IF(ЦільЩодоВаги="Збільшення",G123-H123,H123-G123),"") ->  | K123: =IFERROR(IF(Звичайний,J123/КалоріїНаФунт,J123/КалоріїНаФунт/2.2),"") ->  | L123: =IFERROR(ВагаДляСхудненняНабору-K123,"") ->  | M123: =IFERROR(IF(B122<>"",L123/(ВагаДляСхудненняНабору),""),"") -> 
F124: =IFERROR(АктивнийBMR,"") ->  | G124: =IFERROR(IF(K123>0,F123*ФакторАктивності+IF(ЦільЩодоВаги="Підтримання",0,IF(ЦільЩодоВаги="ЗМЕНШИЛАСЯ",-500,IF(ЦільЩодоВаги="Збільшення",500))),""),"") ->  | H124: =IFERROR(F124*(ФакторАктивності),"") ->  | I124: =IFERROR(IF(ЦільЩодоВаги="Збільшення",G124-H124,H124-G124),"") ->  | K124: =IFERROR(IF(Звичайний,J124/КалоріїНаФунт,J124/КалоріїНаФунт/2.2),"") ->  | L124: =IFERROR(ВагаДляСхудненняНабору-K124,"") ->  | M124: =IFERROR(IF(B123<>"",L124/(ВагаДляСхудненняНабору),""),"") -> 
F125: =IFERROR(АктивнийBMR,"") ->  | G125: =IFERROR(IF(K124>0,F124*ФакторАктивності+IF(ЦільЩодоВаги="Підтримання",0,IF(ЦільЩодоВаги="ЗМЕНШИЛАСЯ",-500,IF(ЦільЩодоВаги="Збільшення",500))),""),"") ->  | H125: =IFERROR(F125*(ФакторАктивності),"") ->  | I125: =IFERROR(IF(ЦільЩодоВаги="Збільшення",G125-H125,H125-G125),"") ->  | K125: =IFERROR(IF(Звичайний,J125/КалоріїНаФунт,J125/КалоріїНаФунт/2.2),"") ->  | L125: =IFERROR(ВагаДляСхудненняНабору-K125,"") ->  | M125: =IFERROR(IF(B124<>"",L125/(ВагаДляСхудненняНабору),""),"") -> 
F126: =IFERROR(АктивнийBMR,"") ->  | G126: =IFERROR(IF(K125>0,F125*ФакторАктивності+IF(ЦільЩодоВаги="Підтримання",0,IF(ЦільЩодоВаги="ЗМЕНШИЛАСЯ",-500,IF(ЦільЩодоВаги="Збільшення",500))),""),"") ->  | H126: =IFERROR(F126*(ФакторАктивності),"") ->  | I126: =IFERROR(IF(ЦільЩодоВаги="Збільшення",G126-H126,H126-G126),"") ->  | K126: =IFERROR(IF(Звичайний,J126/КалоріїНаФунт,J126/КалоріїНаФунт/2.2),"") ->  | L126: =IFERROR(ВагаДляСхудненняНабору-K126,"") ->  | M126: =IFERROR(IF(B125<>"",L126/(ВагаДляСхудненняНабору),""),"") -> 
F127: =IFERROR(АктивнийBMR,"") ->  | G127: =IFERROR(IF(K126>0,F126*ФакторАктивності+IF(ЦільЩодоВаги="Підтримання",0,IF(ЦільЩодоВаги="ЗМЕНШИЛАСЯ",-500,IF(ЦільЩодоВаги="Збільшення",500))),""),"") ->  | H127: =IFERROR(F127*(ФакторАктивності),"") ->  | I127: =IFERROR(IF(ЦільЩодоВаги="Збільшення",G127-H127,H127-G127),"") ->  | K127: =IFERROR(IF(Звичайний,J127/КалоріїНаФунт,J127/КалоріїНаФунт/2.2),"") ->  | L127: =IFERROR(ВагаДляСхудненняНабору-K127,"") ->  | M127: =IFERROR(IF(B126<>"",L127/(ВагаДляСхудненняНабору),""),"") -> 
F128: =IFERROR(АктивнийBMR,"") ->  | G128: =IFERROR(IF(K127>0,F127*ФакторАктивності+IF(ЦільЩодоВаги="Підтримання",0,IF(ЦільЩодоВаги="ЗМЕНШИЛАСЯ",-500,IF(ЦільЩодоВаги="Збільшення",500))),""),"") ->  | H128: =IFERROR(F128*(ФакторАктивності),"") ->  | I128: =IFERROR(IF(ЦільЩодоВаги="Збільшення",G128-H128,H128-G128),"") ->  | K128: =IFERROR(IF(Звичайний,J128/КалоріїНаФунт,J128/КалоріїНаФунт/2.2),"") ->  | L128: =IFERROR(ВагаДляСхудненняНабору-K128,"") ->  | M128: =IFERROR(IF(B127<>"",L128/(ВагаДляСхудненняНабору),""),"") -> 
F129: =IFERROR(АктивнийBMR,"") ->  | G129: =IFERROR(IF(K128>0,F128*ФакторАктивності+IF(ЦільЩодоВаги="Підтримання",0,IF(ЦільЩодоВаги="ЗМЕНШИЛАСЯ",-500,IF(ЦільЩодоВаги="Збільшення",500))),""),"") ->  | H129: =IFERROR(F129*(ФакторАктивності),"") ->  | I129: =IFERROR(IF(ЦільЩодоВаги="Збільшення",G129-H129,H129-G129),"") ->  | K129: =IFERROR(IF(Звичайний,J129/КалоріїНаФунт,J129/КалоріїНаФунт/2.2),"") ->  | L129: =IFERROR(ВагаДляСхудненняНабору-K129,"") ->  | M129: =IFERROR(IF(B128<>"",L129/(ВагаДляСхудненняНабору),""),"") -> 
F130: =IFERROR(АктивнийBMR,"") ->  | G130: =IFERROR(IF(K129>0,F129*ФакторАктивності+IF(ЦільЩодоВаги="Підтримання",0,IF(ЦільЩодоВаги="ЗМЕНШИЛАСЯ",-500,IF(ЦільЩодоВаги="Збільшення",500))),""),"") ->  | H130: =IFERROR(F130*(ФакторАктивності),"") ->  | I130: =IFERROR(IF(ЦільЩодоВаги="Збільшення",G130-H130,H130-G130),"") ->  | K130: =IFERROR(IF(Звичайний,J130/КалоріїНаФунт,J130/КалоріїНаФунт/2.2),"") ->  | L130: =IFERROR(ВагаДляСхудненняНабору-K130,"") ->  | M130: =IFERROR(IF(B129<>"",L130/(ВагаДляСхудненняНабору),""),"") -> 
F131: =IFERROR(АктивнийBMR,"") ->  | G131: =IFERROR(IF(K130>0,F130*ФакторАктивності+IF(ЦільЩодоВаги="Підтримання",0,IF(ЦільЩодоВаги="ЗМЕНШИЛАСЯ",-500,IF(ЦільЩодоВаги="Збільшення",500))),""),"") ->  | H131: =IFERROR(F131*(ФакторАктивності),"") ->  | I131: =IFERROR(IF(ЦільЩодоВаги="Збільшення",G131-H131,H131-G131),"") ->  | K131: =IFERROR(IF(Звичайний,J131/КалоріїНаФунт,J131/КалоріїНаФунт/2.2),"") ->  | L131: =IFERROR(ВагаДляСхудненняНабору-K131,"") ->  | M131: =IFERROR(IF(B130<>"",L131/(ВагаДляСхудненняНабору),""),"") -> 
F132: =IFERROR(АктивнийBMR,"") ->  | G132: =IFERROR(IF(K131>0,F131*ФакторАктивності+IF(ЦільЩодоВаги="Підтримання",0,IF(ЦільЩодоВаги="ЗМЕНШИЛАСЯ",-500,IF(ЦільЩодоВаги="Збільшення",500))),""),"") ->  | H132: =IFERROR(F132*(ФакторАктивності),"") ->  | I132: =IFERROR(IF(ЦільЩодоВаги="Збільшення",G132-H132,H132-G132),"") ->  | K132: =IFERROR(IF(Звичайний,J132/КалоріїНаФунт,J132/КалоріїНаФунт/2.2),"") ->  | L132: =IFERROR(ВагаДляСхудненняНабору-K132,"") ->  | M132: =IFERROR(IF(B131<>"",L132/(ВагаДляСхудненняНабору),""),"") -> 
F133: =IFERROR(АктивнийBMR,"") ->  | G133: =IFERROR(IF(K132>0,F132*ФакторАктивності+IF(ЦільЩодоВаги="Підтримання",0,IF(ЦільЩодоВаги="ЗМЕНШИЛАСЯ",-500,IF(ЦільЩодоВаги="Збільшення",500))),""),"") ->  | H133: =IFERROR(F133*(ФакторАктивності),"") ->  | I133: =IFERROR(IF(ЦільЩодоВаги="Збільшення",G133-H133,H133-G133),"") ->  | K133: =IFERROR(IF(Звичайний,J133/КалоріїНаФунт,J133/КалоріїНаФунт/2.2),"") ->  | L133: =IFERROR(ВагаДляСхудненняНабору-K133,"") ->  | M133: =IFERROR(IF(B132<>"",L133/(ВагаДляСхудненняНабору),""),"") -> 
F134: =IFERROR(АктивнийBMR,"") ->  | G134: =IFERROR(IF(K133>0,F133*ФакторАктивності+IF(ЦільЩодоВаги="Підтримання",0,IF(ЦільЩодоВаги="ЗМЕНШИЛАСЯ",-500,IF(ЦільЩодоВаги="Збільшення",500))),""),"") ->  | H134: =IFERROR(F134*(ФакторАктивності),"") ->  | I134: =IFERROR(IF(ЦільЩодоВаги="Збільшення",G134-H134,H134-G134),"") ->  | K134: =IFERROR(IF(Звичайний,J134/КалоріїНаФунт,J134/КалоріїНаФунт/2.2),"") ->  | L134: =IFERROR(ВагаДляСхудненняНабору-K134,"") ->  | M134: =IFERROR(IF(B133<>"",L134/(ВагаДляСхудненняНабору),""),"") -> 
F135: =IFERROR(АктивнийBMR,"") ->  | G135: =IFERROR(IF(K134>0,F134*ФакторАктивності+IF(ЦільЩодоВаги="Підтримання",0,IF(ЦільЩодоВаги="ЗМЕНШИЛАСЯ",-500,IF(ЦільЩодоВаги="Збільшення",500))),""),"") ->  | H135: =IFERROR(F135*(ФакторАктивності),"") ->  | I135: =IFERROR(IF(ЦільЩодоВаги="Збільшення",G135-H135,H135-G135),"") ->  | K135: =IFERROR(IF(Звичайний,J135/КалоріїНаФунт,J135/КалоріїНаФунт/2.2),"") ->  | L135: =IFERROR(ВагаДляСхудненняНабору-K135,"") ->  | M135: =IFERROR(IF(B134<>"",L135/(ВагаДляСхудненняНабору),""),"") -> 
F136: =IFERROR(АктивнийBMR,"") ->  | G136: =IFERROR(IF(K135>0,F135*ФакторАктивності+IF(ЦільЩодоВаги="Підтримання",0,IF(ЦільЩодоВаги="ЗМЕНШИЛАСЯ",-500,IF(ЦільЩодоВаги="Збільшення",500))),""),"") ->  | H136: =IFERROR(F136*(ФакторАктивності),"") ->  | I136: =IFERROR(IF(ЦільЩодоВаги="Збільшення",G136-H136,H136-G136),"") ->  | K136: =IFERROR(IF(Звичайний,J136/КалоріїНаФунт,J136/КалоріїНаФунт/2.2),"") ->  | L136: =IFERROR(ВагаДляСхудненняНабору-K136,"") ->  | M136: =IFERROR(IF(B135<>"",L136/(ВагаДляСхудненняНабору),""),"") -> 
F137: =IFERROR(АктивнийBMR,"") ->  | G137: =IFERROR(IF(K136>0,F136*ФакторАктивності+IF(ЦільЩодоВаги="Підтримання",0,IF(ЦільЩодоВаги="ЗМЕНШИЛАСЯ",-500,IF(ЦільЩодоВаги="Збільшення",500))),""),"") ->  | H137: =IFERROR(F137*(ФакторАктивності),"") ->  | I137: =IFERROR(IF(ЦільЩодоВаги="Збільшення",G137-H137,H137-G137),"") ->  | K137: =IFERROR(IF(Звичайний,J137/КалоріїНаФунт,J137/КалоріїНаФунт/2.2),"") ->  | L137: =IFERROR(ВагаДляСхудненняНабору-K137,"") ->  | M137: =IFERROR(IF(B136<>"",L137/(ВагаДляСхудненняНабору),""),"") -> 
F138: =IFERROR(АктивнийBMR,"") ->  | G138: =IFERROR(IF(K137>0,F137*ФакторАктивності+IF(ЦільЩодоВаги="Підтримання",0,IF(ЦільЩодоВаги="ЗМЕНШИЛАСЯ",-500,IF(ЦільЩодоВаги="Збільшення",500))),""),"") ->  | H138: =IFERROR(F138*(ФакторАктивності),"") ->  | I138: =IFERROR(IF(ЦільЩодоВаги="Збільшення",G138-H138,H138-G138),"") ->  | K138: =IFERROR(IF(Звичайний,J138/КалоріїНаФунт,J138/КалоріїНаФунт/2.2),"") ->  | L138: =IFERROR(ВагаДляСхудненняНабору-K138,"") ->  | M138: =IFERROR(IF(B137<>"",L138/(ВагаДляСхудненняНабору),""),"") -> 
F139: =IFERROR(АктивнийBMR,"") ->  | G139: =IFERROR(IF(K138>0,F138*ФакторАктивності+IF(ЦільЩодоВаги="Підтримання",0,IF(ЦільЩодоВаги="ЗМЕНШИЛАСЯ",-500,IF(ЦільЩодоВаги="Збільшення",500))),""),"") ->  | H139: =IFERROR(F139*(ФакторАктивності),"") ->  | I139: =IFERROR(IF(ЦільЩодоВаги="Збільшення",G139-H139,H139-G139),"") ->  | K139: =IFERROR(IF(Звичайний,J139/КалоріїНаФунт,J139/КалоріїНаФунт/2.2),"") ->  | L139: =IFERROR(ВагаДляСхудненняНабору-K139,"") ->  | M139: =IFERROR(IF(B138<>"",L139/(ВагаДляСхудненняНабору),""),"") -> 
B140: =IFERROR(IF(K139>0,B139+1,""),"") ->  | D140: =IFERROR(IF(K139>0,D139+1,""),"") ->  | E140: =IFERROR(IF($D140<>"",E139-(I139/КалоріїНаФунт),""),"") ->  | F140: =IFERROR(АктивнийBMR,"") ->  | G140: =IFERROR(IF(K139>0,F139*ФакторАктивності+IF(ЦільЩодоВаги="Підтримання",0,IF(ЦільЩодоВаги="ЗМЕНШИЛАСЯ",-500,IF(ЦільЩодоВаги="Збільшення",500))),""),"") ->  | H140: =IFERROR(F140*(ФакторАктивності),"") ->  | I140: =IFERROR(IF(ЦільЩодоВаги="Збільшення",G140-H140,H140-G140),"") ->  | K140: =IFERROR(IF(Звичайний,J140/КалоріїНаФунт,J140/КалоріїНаФунт/2.2),"") ->  | L140: =IFERROR(ВагаДляСхудненняНабору-K140,"") ->  | M140: =IFERROR(IF(B139<>"",L140/(ВагаДляСхудненняНабору),""),"") -> 
C141: =IFERROR(IF(D141<>"",IF(MOD(D141,7)=1,(D140/7)+1,""),""),"") ->  | F141: =IFERROR(АктивнийBMR,"") ->  | G141: =IFERROR(IF(K140>0,F140*ФакторАктивності+IF(ЦільЩодоВаги="Підтримання",0,IF(ЦільЩодоВаги="ЗМЕНШИЛАСЯ",-500,IF(ЦільЩодоВаги="Збільшення",500))),""),"") ->  | H141: =IFERROR(F141*(ФакторАктивності),"") ->  | I141: =IFERROR(IF(ЦільЩодоВаги="Збільшення",G141-H141,H141-G141),"") ->  | J141: =IFERROR(J140-I141,"") ->  | K141: =IFERROR(IF(Звичайний,J141/КалоріїНаФунт,J141/КалоріїНаФунт/2.2),"") ->  | L141: =IFERROR(ВагаДляСхудненняНабору-K141,"") ->  | M141: =IFERROR(IF(B140<>"",L141/(ВагаДляСхудненняНабору),""),"") -> 
F142: =IFERROR(АктивнийBMR,"") ->  | G142: =IFERROR(IF(K141>0,F141*ФакторАктивності+IF(ЦільЩодоВаги="Підтримання",0,IF(ЦільЩодоВаги="ЗМЕНШИЛАСЯ",-500,IF(ЦільЩодоВаги="Збільшення",500))),""),"") ->  | H142: =IFERROR(F142*(ФакторАктивності),"") ->  | I142: =IFERROR(IF(ЦільЩодоВаги="Збільшення",G142-H142,H142-G142),"") ->  | K142: =IFERROR(IF(Звичайний,J142/КалоріїНаФунт,J142/КалоріїНаФунт/2.2),"") ->  | L142: =IFERROR(ВагаДляСхудненняНабору-K142,"") ->  | M142: =IFERROR(IF(B141<>"",L142/(ВагаДляСхудненняНабору),""),"") -> 
F143: =IFERROR(АктивнийBMR,"") ->  | G143: =IFERROR(IF(K142>0,F142*ФакторАктивності+IF(ЦільЩодоВаги="Підтримання",0,IF(ЦільЩодоВаги="ЗМЕНШИЛАСЯ",-500,IF(ЦільЩодоВаги="Збільшення",500))),""),"") ->  | H143: =IFERROR(F143*(ФакторАктивності),"") ->  | I143: =IFERROR(IF(ЦільЩодоВаги="Збільшення",G143-H143,H143-G143),"") ->  | K143: =IFERROR(IF(Звичайний,J143/КалоріїНаФунт,J143/КалоріїНаФунт/2.2),"") ->  | L143: =IFERROR(ВагаДляСхудненняНабору-K143,"") ->  | M143: =IFERROR(IF(B142<>"",L143/(ВагаДляСхудненняНабору),""),"") -> 
F144: =IFERROR(АктивнийBMR,"") ->  | G144: =IFERROR(IF(K143>0,F143*ФакторАктивності+IF(ЦільЩодоВаги="Підтримання",0,IF(ЦільЩодоВаги="ЗМЕНШИЛАСЯ",-500,IF(ЦільЩодоВаги="Збільшення",500))),""),"") ->  | H144: =IFERROR(F144*(ФакторАктивності),"") ->  | I144: =IFERROR(IF(ЦільЩодоВаги="Збільшення",G144-H144,H144-G144),"") ->  | K144: =IFERROR(IF(Звичайний,J144/КалоріїНаФунт,J144/КалоріїНаФунт/2.2),"") ->  | L144: =IFERROR(ВагаДляСхудненняНабору-K144,"") ->  | M144: =IFERROR(IF(B143<>"",L144/(ВагаДляСхудненняНабору),""),"") -> 
F145: =IFERROR(АктивнийBMR,"") ->  | G145: =IFERROR(IF(K144>0,F144*ФакторАктивності+IF(ЦільЩодоВаги="Підтримання",0,IF(ЦільЩодоВаги="ЗМЕНШИЛАСЯ",-500,IF(ЦільЩодоВаги="Збільшення",500))),""),"") ->  | H145: =IFERROR(F145*(ФакторАктивності),"") ->  | I145: =IFERROR(IF(ЦільЩодоВаги="Збільшення",G145-H145,H145-G145),"") ->  | K145: =IFERROR(IF(Звичайний,J145/КалоріїНаФунт,J145/КалоріїНаФунт/2.2),"") ->  | L145: =IFERROR(ВагаДляСхудненняНабору-K145,"") ->  | M145: =IFERROR(IF(B144<>"",L145/(ВагаДляСхудненняНабору),""),"") -> 
F146: =IFERROR(АктивнийBMR,"") ->  | G146: =IFERROR(IF(K145>0,F145*ФакторАктивності+IF(ЦільЩодоВаги="Підтримання",0,IF(ЦільЩодоВаги="ЗМЕНШИЛАСЯ",-500,IF(ЦільЩодоВаги="Збільшення",500))),""),"") ->  | H146: =IFERROR(F146*(ФакторАктивності),"") ->  | I146: =IFERROR(IF(ЦільЩодоВаги="Збільшення",G146-H146,H146-G146),"") ->  | K146: =IFERROR(IF(Звичайний,J146/КалоріїНаФунт,J146/КалоріїНаФунт/2.2),"") ->  | L146: =IFERROR(ВагаДляСхудненняНабору-K146,"") ->  | M146: =IFERROR(IF(B145<>"",L146/(ВагаДляСхудненняНабору),""),"") -> 
F147: =IFERROR(АктивнийBMR,"") ->  | G147: =IFERROR(IF(K146>0,F146*ФакторАктивності+IF(ЦільЩодоВаги="Підтримання",0,IF(ЦільЩодоВаги="ЗМЕНШИЛАСЯ",-500,IF(ЦільЩодоВаги="Збільшення",500))),""),"") ->  | H147: =IFERROR(F147*(ФакторАктивності),"") ->  | I147: =IFERROR(IF(ЦільЩодоВаги="Збільшення",G147-H147,H147-G147),"") ->  | K147: =IFERROR(IF(Звичайний,J147/КалоріїНаФунт,J147/КалоріїНаФунт/2.2),"") ->  | L147: =IFERROR(ВагаДляСхудненняНабору-K147,"") ->  | M147: =IFERROR(IF(B146<>"",L147/(ВагаДляСхудненняНабору),""),"") -> 
F148: =IFERROR(АктивнийBMR,"") ->  | G148: =IFERROR(IF(K147>0,F147*ФакторАктивності+IF(ЦільЩодоВаги="Підтримання",0,IF(ЦільЩодоВаги="ЗМЕНШИЛАСЯ",-500,IF(ЦільЩодоВаги="Збільшення",500))),""),"") ->  | H148: =IFERROR(F148*(ФакторАктивності),"") ->  | I148: =IFERROR(IF(ЦільЩодоВаги="Збільшення",G148-H148,H148-G148),"") ->  | K148: =IFERROR(IF(Звичайний,J148/КалоріїНаФунт,J148/КалоріїНаФунт/2.2),"") ->  | L148: =IFERROR(ВагаДляСхудненняНабору-K148,"") ->  | M148: =IFERROR(IF(B147<>"",L148/(ВагаДляСхудненняНабору),""),"") -> 
F149: =IFERROR(АктивнийBMR,"") ->  | G149: =IFERROR(IF(K148>0,F148*ФакторАктивності+IF(ЦільЩодоВаги="Підтримання",0,IF(ЦільЩодоВаги="ЗМЕНШИЛАСЯ",-500,IF(ЦільЩодоВаги="Збільшення",500))),""),"") ->  | H149: =IFERROR(F149*(ФакторАктивності),"") ->  | I149: =IFERROR(IF(ЦільЩодоВаги="Збільшення",G149-H149,H149-G149),"") ->  | K149: =IFERROR(IF(Звичайний,J149/КалоріїНаФунт,J149/КалоріїНаФунт/2.2),"") ->  | L149: =IFERROR(ВагаДляСхудненняНабору-K149,"") ->  | M149: =IFERROR(IF(B148<>"",L149/(ВагаДляСхудненняНабору),""),"") -> 
F150: =IFERROR(АктивнийBMR,"") ->  | G150: =IFERROR(IF(K149>0,F149*ФакторАктивності+IF(ЦільЩодоВаги="Підтримання",0,IF(ЦільЩодоВаги="ЗМЕНШИЛАСЯ",-500,IF(ЦільЩодоВаги="Збільшення",500))),""),"") ->  | H150: =IFERROR(F150*(ФакторАктивності),"") ->  | I150: =IFERROR(IF(ЦільЩодоВаги="Збільшення",G150-H150,H150-G150),"") ->  | K150: =IFERROR(IF(Звичайний,J150/КалоріїНаФунт,J150/КалоріїНаФунт/2.2),"") ->  | L150: =IFERROR(ВагаДляСхудненняНабору-K150,"") ->  | M150: =IFERROR(IF(B149<>"",L150/(ВагаДляСхудненняНабору),""),"") -> 
F151: =IFERROR(АктивнийBMR,"") ->  | G151: =IFERROR(IF(K150>0,F150*ФакторАктивності+IF(ЦільЩодоВаги="Підтримання",0,IF(ЦільЩодоВаги="ЗМЕНШИЛАСЯ",-500,IF(ЦільЩодоВаги="Збільшення",500))),""),"") ->  | H151: =IFERROR(F151*(ФакторАктивності),"") ->  | I151: =IFERROR(IF(ЦільЩодоВаги="Збільшення",G151-H151,H151-G151),"") ->  | K151: =IFERROR(IF(Звичайний,J151/КалоріїНаФунт,J151/КалоріїНаФунт/2.2),"") ->  | L151: =IFERROR(ВагаДляСхудненняНабору-K151,"") ->  | M151: =IFERROR(IF(B150<>"",L151/(ВагаДляСхудненняНабору),""),"") -> 
F152: =IFERROR(АктивнийBMR,"") ->  | G152: =IFERROR(IF(K151>0,F151*ФакторАктивності+IF(ЦільЩодоВаги="Підтримання",0,IF(ЦільЩодоВаги="ЗМЕНШИЛАСЯ",-500,IF(ЦільЩодоВаги="Збільшення",500))),""),"") ->  | H152: =IFERROR(F152*(ФакторАктивності),"") ->  | I152: =IFERROR(IF(ЦільЩодоВаги="Збільшення",G152-H152,H152-G152),"") ->  | K152: =IFERROR(IF(Звичайний,J152/КалоріїНаФунт,J152/КалоріїНаФунт/2.2),"") ->  | L152: =IFERROR(ВагаДляСхудненняНабору-K152,"") ->  | M152: =IFERROR(IF(B151<>"",L152/(ВагаДляСхудненняНабору),""),"") -> 
F153: =IFERROR(АктивнийBMR,"") ->  | G153: =IFERROR(IF(K152>0,F152*ФакторАктивності+IF(ЦільЩодоВаги="Підтримання",0,IF(ЦільЩодоВаги="ЗМЕНШИЛАСЯ",-500,IF(ЦільЩодоВаги="Збільшення",500))),""),"") ->  | H153: =IFERROR(F153*(ФакторАктивності),"") ->  | I153: =IFERROR(IF(ЦільЩодоВаги="Збільшення",G153-H153,H153-G153),"") ->  | K153: =IFERROR(IF(Звичайний,J153/КалоріїНаФунт,J153/КалоріїНаФунт/2.2),"") ->  | L153: =IFERROR(ВагаДляСхудненняНабору-K153,"") ->  | M153: =IFERROR(IF(B152<>"",L153/(ВагаДляСхудненняНабору),""),"") -> 
F154: =IFERROR(АктивнийBMR,"") ->  | G154: =IFERROR(IF(K153>0,F153*ФакторАктивності+IF(ЦільЩодоВаги="Підтримання",0,IF(ЦільЩодоВаги="ЗМЕНШИЛАСЯ",-500,IF(ЦільЩодоВаги="Збільшення",500))),""),"") ->  | H154: =IFERROR(F154*(ФакторАктивності),"") ->  | I154: =IFERROR(IF(ЦільЩодоВаги="Збільшення",G154-H154,H154-G154),"") ->  | K154: =IFERROR(IF(Звичайний,J154/КалоріїНаФунт,J154/КалоріїНаФунт/2.2),"") ->  | L154: =IFERROR(ВагаДляСхудненняНабору-K154,"") ->  | M154: =IFERROR(IF(B153<>"",L154/(ВагаДляСхудненняНабору),""),"") -> 
F155: =IFERROR(АктивнийBMR,"") ->  | G155: =IFERROR(IF(K154>0,F154*ФакторАктивності+IF(ЦільЩодоВаги="Підтримання",0,IF(ЦільЩодоВаги="ЗМЕНШИЛАСЯ",-500,IF(ЦільЩодоВаги="Збільшення",500))),""),"") ->  | H155: =IFERROR(F155*(ФакторАктивності),"") ->  | I155: =IFERROR(IF(ЦільЩодоВаги="Збільшення",G155-H155,H155-G155),"") ->  | K155: =IFERROR(IF(Звичайний,J155/КалоріїНаФунт,J155/КалоріїНаФунт/2.2),"") ->  | L155: =IFERROR(ВагаДляСхудненняНабору-K155,"") ->  | M155: =IFERROR(IF(B154<>"",L155/(ВагаДляСхудненняНабору),""),"") -> 
F156: =IFERROR(АктивнийBMR,"") ->  | G156: =IFERROR(IF(K155>0,F155*ФакторАктивності+IF(ЦільЩодоВаги="Підтримання",0,IF(ЦільЩодоВаги="ЗМЕНШИЛАСЯ",-500,IF(ЦільЩодоВаги="Збільшення",500))),""),"") ->  | H156: =IFERROR(F156*(ФакторАктивності),"") ->  | I156: =IFERROR(IF(ЦільЩодоВаги="Збільшення",G156-H156,H156-G156),"") ->  | K156: =IFERROR(IF(Звичайний,J156/КалоріїНаФунт,J156/КалоріїНаФунт/2.2),"") ->  | L156: =IFERROR(ВагаДляСхудненняНабору-K156,"") ->  | M156: =IFERROR(IF(B155<>"",L156/(ВагаДляСхудненняНабору),""),"") -> 
F157: =IFERROR(АктивнийBMR,"") ->  | G157: =IFERROR(IF(K156>0,F156*ФакторАктивності+IF(ЦільЩодоВаги="Підтримання",0,IF(ЦільЩодоВаги="ЗМЕНШИЛАСЯ",-500,IF(ЦільЩодоВаги="Збільшення",500))),""),"") ->  | H157: =IFERROR(F157*(ФакторАктивності),"") ->  | I157: =IFERROR(IF(ЦільЩодоВаги="Збільшення",G157-H157,H157-G157),"") ->  | K157: =IFERROR(IF(Звичайний,J157/КалоріїНаФунт,J157/КалоріїНаФунт/2.2),"") ->  | L157: =IFERROR(ВагаДляСхудненняНабору-K157,"") ->  | M157: =IFERROR(IF(B156<>"",L157/(ВагаДляСхудненняНабору),""),"") -> 
F158: =IFERROR(АктивнийBMR,"") ->  | G158: =IFERROR(IF(K157>0,F157*ФакторАктивності+IF(ЦільЩодоВаги="Підтримання",0,IF(ЦільЩодоВаги="ЗМЕНШИЛАСЯ",-500,IF(ЦільЩодоВаги="Збільшення",500))),""),"") ->  | H158: =IFERROR(F158*(ФакторАктивності),"") ->  | I158: =IFERROR(IF(ЦільЩодоВаги="Збільшення",G158-H158,H158-G158),"") ->  | K158: =IFERROR(IF(Звичайний,J158/КалоріїНаФунт,J158/КалоріїНаФунт/2.2),"") ->  | L158: =IFERROR(ВагаДляСхудненняНабору-K158,"") ->  | M158: =IFERROR(IF(B157<>"",L158/(ВагаДляСхудненняНабору),""),"") -> 
F159: =IFERROR(АктивнийBMR,"") ->  | G159: =IFERROR(IF(K158>0,F158*ФакторАктивності+IF(ЦільЩодоВаги="Підтримання",0,IF(ЦільЩодоВаги="ЗМЕНШИЛАСЯ",-500,IF(ЦільЩодоВаги="Збільшення",500))),""),"") ->  | H159: =IFERROR(F159*(ФакторАктивності),"") ->  | I159: =IFERROR(IF(ЦільЩодоВаги="Збільшення",G159-H159,H159-G159),"") ->  | K159: =IFERROR(IF(Звичайний,J159/КалоріїНаФунт,J159/КалоріїНаФунт/2.2),"") ->  | L159: =IFERROR(ВагаДляСхудненняНабору-K159,"") ->  | M159: =IFERROR(IF(B158<>"",L159/(ВагаДляСхудненняНабору),""),"") -> 
F160: =IFERROR(АктивнийBMR,"") ->  | G160: =IFERROR(IF(K159>0,F159*ФакторАктивності+IF(ЦільЩодоВаги="Підтримання",0,IF(ЦільЩодоВаги="ЗМЕНШИЛАСЯ",-500,IF(ЦільЩодоВаги="Збільшення",500))),""),"") ->  | H160: =IFERROR(F160*(ФакторАктивності),"") ->  | I160: =IFERROR(IF(ЦільЩодоВаги="Збільшення",G160-H160,H160-G160),"") ->  | K160: =IFERROR(IF(Звичайний,J160/КалоріїНаФунт,J160/КалоріїНаФунт/2.2),"") ->  | L160: =IFERROR(ВагаДляСхудненняНабору-K160,"") ->  | M160: =IFERROR(IF(B159<>"",L160/(ВагаДляСхудненняНабору),""),"") -> 
F161: =IFERROR(АктивнийBMR,"") ->  | G161: =IFERROR(IF(K160>0,F160*ФакторАктивності+IF(ЦільЩодоВаги="Підтримання",0,IF(ЦільЩодоВаги="ЗМЕНШИЛАСЯ",-500,IF(ЦільЩодоВаги="Збільшення",500))),""),"") ->  | H161: =IFERROR(F161*(ФакторАктивності),"") ->  | I161: =IFERROR(IF(ЦільЩодоВаги="Збільшення",G161-H161,H161-G161),"") ->  | K161: =IFERROR(IF(Звичайний,J161/КалоріїНаФунт,J161/КалоріїНаФунт/2.2),"") ->  | L161: =IFERROR(ВагаДляСхудненняНабору-K161,"") ->  | M161: =IFERROR(IF(B160<>"",L161/(ВагаДляСхудненняНабору),""),"") -> 
F162: =IFERROR(АктивнийBMR,"") ->  | G162: =IFERROR(IF(K161>0,F161*ФакторАктивності+IF(ЦільЩодоВаги="Підтримання",0,IF(ЦільЩодоВаги="ЗМЕНШИЛАСЯ",-500,IF(ЦільЩодоВаги="Збільшення",500))),""),"") ->  | H162: =IFERROR(F162*(ФакторАктивності),"") ->  | I162: =IFERROR(IF(ЦільЩодоВаги="Збільшення",G162-H162,H162-G162),"") ->  | K162: =IFERROR(IF(Звичайний,J162/КалоріїНаФунт,J162/КалоріїНаФунт/2.2),"") ->  | L162: =IFERROR(ВагаДляСхудненняНабору-K162,"") ->  | M162: =IFERROR(IF(B161<>"",L162/(ВагаДляСхудненняНабору),""),"") -> 
F163: =IFERROR(АктивнийBMR,"") ->  | G163: =IFERROR(IF(K162>0,F162*ФакторАктивності+IF(ЦільЩодоВаги="Підтримання",0,IF(ЦільЩодоВаги="ЗМЕНШИЛАСЯ",-500,IF(ЦільЩодоВаги="Збільшення",500))),""),"") ->  | H163: =IFERROR(F163*(ФакторАктивності),"") ->  | I163: =IFERROR(IF(ЦільЩодоВаги="Збільшення",G163-H163,H163-G163),"") ->  | K163: =IFERROR(IF(Звичайний,J163/КалоріїНаФунт,J163/КалоріїНаФунт/2.2),"") ->  | L163: =IFERROR(ВагаДляСхудненняНабору-K163,"") ->  | M163: =IFERROR(IF(B162<>"",L163/(ВагаДляСхудненняНабору),""),"") -> 
F164: =IFERROR(АктивнийBMR,"") ->  | G164: =IFERROR(IF(K163>0,F163*ФакторАктивності+IF(ЦільЩодоВаги="Підтримання",0,IF(ЦільЩодоВаги="ЗМЕНШИЛАСЯ",-500,IF(ЦільЩодоВаги="Збільшення",500))),""),"") ->  | H164: =IFERROR(F164*(ФакторАктивності),"") ->  | I164: =IFERROR(IF(ЦільЩодоВаги="Збільшення",G164-H164,H164-G164),"") ->  | K164: =IFERROR(IF(Звичайний,J164/КалоріїНаФунт,J164/КалоріїНаФунт/2.2),"") ->  | L164: =IFERROR(ВагаДляСхудненняНабору-K164,"") ->  | M164: =IFERROR(IF(B163<>"",L164/(ВагаДляСхудненняНабору),""),"") -> 
F165: =IFERROR(АктивнийBMR,"") ->  | G165: =IFERROR(IF(K164>0,F164*ФакторАктивності+IF(ЦільЩодоВаги="Підтримання",0,IF(ЦільЩодоВаги="ЗМЕНШИЛАСЯ",-500,IF(ЦільЩодоВаги="Збільшення",500))),""),"") ->  | H165: =IFERROR(F165*(ФакторАктивності),"") ->  | I165: =IFERROR(IF(ЦільЩодоВаги="Збільшення",G165-H165,H165-G165),"") ->  | K165: =IFERROR(IF(Звичайний,J165/КалоріїНаФунт,J165/КалоріїНаФунт/2.2),"") ->  | L165: =IFERROR(ВагаДляСхудненняНабору-K165,"") ->  | M165: =IFERROR(IF(B164<>"",L165/(ВагаДляСхудненняНабору),""),"") -> 
F166: =IFERROR(АктивнийBMR,"") ->  | G166: =IFERROR(IF(K165>0,F165*ФакторАктивності+IF(ЦільЩодоВаги="Підтримання",0,IF(ЦільЩодоВаги="ЗМЕНШИЛАСЯ",-500,IF(ЦільЩодоВаги="Збільшення",500))),""),"") ->  | H166: =IFERROR(F166*(ФакторАктивності),"") ->  | I166: =IFERROR(IF(ЦільЩодоВаги="Збільшення",G166-H166,H166-G166),"") ->  | K166: =IFERROR(IF(Звичайний,J166/КалоріїНаФунт,J166/КалоріїНаФунт/2.2),"") ->  | L166: =IFERROR(ВагаДляСхудненняНабору-K166,"") ->  | M166: =IFERROR(IF(B165<>"",L166/(ВагаДляСхудненняНабору),""),"") -> 
F167: =IFERROR(АктивнийBMR,"") ->  | G167: =IFERROR(IF(K166>0,F166*ФакторАктивності+IF(ЦільЩодоВаги="Підтримання",0,IF(ЦільЩодоВаги="ЗМЕНШИЛАСЯ",-500,IF(ЦільЩодоВаги="Збільшення",500))),""),"") ->  | H167: =IFERROR(F167*(ФакторАктивності),"") ->  | I167: =IFERROR(IF(ЦільЩодоВаги="Збільшення",G167-H167,H167-G167),"") ->  | K167: =IFERROR(IF(Звичайний,J167/КалоріїНаФунт,J167/КалоріїНаФунт/2.2),"") ->  | L167: =IFERROR(ВагаДляСхудненняНабору-K167,"") ->  | M167: =IFERROR(IF(B166<>"",L167/(ВагаДляСхудненняНабору),""),"") -> 
F168: =IFERROR(АктивнийBMR,"") ->  | G168: =IFERROR(IF(K167>0,F167*ФакторАктивності+IF(ЦільЩодоВаги="Підтримання",0,IF(ЦільЩодоВаги="ЗМЕНШИЛАСЯ",-500,IF(ЦільЩодоВаги="Збільшення",500))),""),"") ->  | H168: =IFERROR(F168*(ФакторАктивності),"") ->  | I168: =IFERROR(IF(ЦільЩодоВаги="Збільшення",G168-H168,H168-G168),"") ->  | K168: =IFERROR(IF(Звичайний,J168/КалоріїНаФунт,J168/КалоріїНаФунт/2.2),"") ->  | L168: =IFERROR(ВагаДляСхудненняНабору-K168,"") ->  | M168: =IFERROR(IF(B167<>"",L168/(ВагаДляСхудненняНабору),""),"") -> 
F169: =IFERROR(АктивнийBMR,"") ->  | G169: =IFERROR(IF(K168>0,F168*ФакторАктивності+IF(ЦільЩодоВаги="Підтримання",0,IF(ЦільЩодоВаги="ЗМЕНШИЛАСЯ",-500,IF(ЦільЩодоВаги="Збільшення",500))),""),"") ->  | H169: =IFERROR(F169*(ФакторАктивності),"") ->  | I169: =IFERROR(IF(ЦільЩодоВаги="Збільшення",G169-H169,H169-G169),"") ->  | K169: =IFERROR(IF(Звичайний,J169/КалоріїНаФунт,J169/КалоріїНаФунт/2.2),"") ->  | L169: =IFERROR(ВагаДляСхудненняНабору-K169,"") ->  | M169: =IFERROR(IF(B168<>"",L169/(ВагаДляСхудненняНабору),""),"") -> 
F170: =IFERROR(АктивнийBMR,"") ->  | G170: =IFERROR(IF(K169>0,F169*ФакторАктивності+IF(ЦільЩодоВаги="Підтримання",0,IF(ЦільЩодоВаги="ЗМЕНШИЛАСЯ",-500,IF(ЦільЩодоВаги="Збільшення",500))),""),"") ->  | H170: =IFERROR(F170*(ФакторАктивності),"") ->  | I170: =IFERROR(IF(ЦільЩодоВаги="Збільшення",G170-H170,H170-G170),"") ->  | K170: =IFERROR(IF(Звичайний,J170/КалоріїНаФунт,J170/КалоріїНаФунт/2.2),"") ->  | L170: =IFERROR(ВагаДляСхудненняНабору-K170,"") ->  | M170: =IFERROR(IF(B169<>"",L170/(ВагаДляСхудненняНабору),""),"") -> 
F171: =IFERROR(АктивнийBMR,"") ->  | G171: =IFERROR(IF(K170>0,F170*ФакторАктивності+IF(ЦільЩодоВаги="Підтримання",0,IF(ЦільЩодоВаги="ЗМЕНШИЛАСЯ",-500,IF(ЦільЩодоВаги="Збільшення",500))),""),"") ->  | H171: =IFERROR(F171*(ФакторАктивності),"") ->  | I171: =IFERROR(IF(ЦільЩодоВаги="Збільшення",G171-H171,H171-G171),"") ->  | K171: =IFERROR(IF(Звичайний,J171/КалоріїНаФунт,J171/КалоріїНаФунт/2.2),"") ->  | L171: =IFERROR(ВагаДляСхудненняНабору-K171,"") ->  | M171: =IFERROR(IF(B170<>"",L171/(ВагаДляСхудненняНабору),""),"") -> 
F172: =IFERROR(АктивнийBMR,"") ->  | G172: =IFERROR(IF(K171>0,F171*ФакторАктивності+IF(ЦільЩодоВаги="Підтримання",0,IF(ЦільЩодоВаги="ЗМЕНШИЛАСЯ",-500,IF(ЦільЩодоВаги="Збільшення",500))),""),"") ->  | H172: =IFERROR(F172*(ФакторАктивності),"") ->  | I172: =IFERROR(IF(ЦільЩодоВаги="Збільшення",G172-H172,H172-G172),"") ->  | K172: =IFERROR(IF(Звичайний,J172/КалоріїНаФунт,J172/КалоріїНаФунт/2.2),"") ->  | L172: =IFERROR(ВагаДляСхудненняНабору-K172,"") ->  | M172: =IFERROR(IF(B171<>"",L172/(ВагаДляСхудненняНабору),""),"") -> 
F173: =IFERROR(АктивнийBMR,"") ->  | G173: =IFERROR(IF(K172>0,F172*ФакторАктивності+IF(ЦільЩодоВаги="Підтримання",0,IF(ЦільЩодоВаги="ЗМЕНШИЛАСЯ",-500,IF(ЦільЩодоВаги="Збільшення",500))),""),"") ->  | H173: =IFERROR(F173*(ФакторАктивності),"") ->  | I173: =IFERROR(IF(ЦільЩодоВаги="Збільшення",G173-H173,H173-G173),"") ->  | K173: =IFERROR(IF(Звичайний,J173/КалоріїНаФунт,J173/КалоріїНаФунт/2.2),"") ->  | L173: =IFERROR(ВагаДляСхудненняНабору-K173,"") ->  | M173: =IFERROR(IF(B172<>"",L173/(ВагаДляСхудненняНабору),""),"") -> 
F174: =IFERROR(АктивнийBMR,"") ->  | G174: =IFERROR(IF(K173>0,F173*ФакторАктивності+IF(ЦільЩодоВаги="Підтримання",0,IF(ЦільЩодоВаги="ЗМЕНШИЛАСЯ",-500,IF(ЦільЩодоВаги="Збільшення",500))),""),"") ->  | H174: =IFERROR(F174*(ФакторАктивності),"") ->  | I174: =IFERROR(IF(ЦільЩодоВаги="Збільшення",G174-H174,H174-G174),"") ->  | K174: =IFERROR(IF(Звичайний,J174/КалоріїНаФунт,J174/КалоріїНаФунт/2.2),"") ->  | L174: =IFERROR(ВагаДляСхудненняНабору-K174,"") ->  | M174: =IFERROR(IF(B173<>"",L174/(ВагаДляСхудненняНабору),""),"") -> 
F175: =IFERROR(АктивнийBMR,"") ->  | G175: =IFERROR(IF(K174>0,F174*ФакторАктивності+IF(ЦільЩодоВаги="Підтримання",0,IF(ЦільЩодоВаги="ЗМЕНШИЛАСЯ",-500,IF(ЦільЩодоВаги="Збільшення",500))),""),"") ->  | H175: =IFERROR(F175*(ФакторАктивності),"") ->  | I175: =IFERROR(IF(ЦільЩодоВаги="Збільшення",G175-H175,H175-G175),"") ->  | K175: =IFERROR(IF(Звичайний,J175/КалоріїНаФунт,J175/КалоріїНаФунт/2.2),"") ->  | L175: =IFERROR(ВагаДляСхудненняНабору-K175,"") ->  | M175: =IFERROR(IF(B174<>"",L175/(ВагаДляСхудненняНабору),""),"") -> 
F176: =IFERROR(АктивнийBMR,"") ->  | G176: =IFERROR(IF(K175>0,F175*ФакторАктивності+IF(ЦільЩодоВаги="Підтримання",0,IF(ЦільЩодоВаги="ЗМЕНШИЛАСЯ",-500,IF(ЦільЩодоВаги="Збільшення",500))),""),"") ->  | H176: =IFERROR(F176*(ФакторАктивності),"") ->  | I176: =IFERROR(IF(ЦільЩодоВаги="Збільшення",G176-H176,H176-G176),"") ->  | K176: =IFERROR(IF(Звичайний,J176/КалоріїНаФунт,J176/КалоріїНаФунт/2.2),"") ->  | L176: =IFERROR(ВагаДляСхудненняНабору-K176,"") ->  | M176: =IFERROR(IF(B175<>"",L176/(ВагаДляСхудненняНабору),""),"") -> 
F177: =IFERROR(АктивнийBMR,"") ->  | G177: =IFERROR(IF(K176>0,F176*ФакторАктивності+IF(ЦільЩодоВаги="Підтримання",0,IF(ЦільЩодоВаги="ЗМЕНШИЛАСЯ",-500,IF(ЦільЩодоВаги="Збільшення",500))),""),"") ->  | H177: =IFERROR(F177*(ФакторАктивності),"") ->  | I177: =IFERROR(IF(ЦільЩодоВаги="Збільшення",G177-H177,H177-G177),"") ->  | K177: =IFERROR(IF(Звичайний,J177/КалоріїНаФунт,J177/КалоріїНаФунт/2.2),"") ->  | L177: =IFERROR(ВагаДляСхудненняНабору-K177,"") ->  | M177: =IFERROR(IF(B176<>"",L177/(ВагаДляСхудненняНабору),""),"") -> 
F178: =IFERROR(АктивнийBMR,"") ->  | G178: =IFERROR(IF(K177>0,F177*ФакторАктивності+IF(ЦільЩодоВаги="Підтримання",0,IF(ЦільЩодоВаги="ЗМЕНШИЛАСЯ",-500,IF(ЦільЩодоВаги="Збільшення",500))),""),"") ->  | H178: =IFERROR(F178*(ФакторАктивності),"") ->  | I178: =IFERROR(IF(ЦільЩодоВаги="Збільшення",G178-H178,H178-G178),"") ->  | K178: =IFERROR(IF(Звичайний,J178/КалоріїНаФунт,J178/КалоріїНаФунт/2.2),"") ->  | L178: =IFERROR(ВагаДляСхудненняНабору-K178,"") ->  | M178: =IFERROR(IF(B177<>"",L178/(ВагаДляСхудненняНабору),""),"") -> 
F179: =IFERROR(АктивнийBMR,"") ->  | G179: =IFERROR(IF(K178>0,F178*ФакторАктивності+IF(ЦільЩодоВаги="Підтримання",0,IF(ЦільЩодоВаги="ЗМЕНШИЛАСЯ",-500,IF(ЦільЩодоВаги="Збільшення",500))),""),"") ->  | H179: =IFERROR(F179*(ФакторАктивності),"") ->  | I179: =IFERROR(IF(ЦільЩодоВаги="Збільшення",G179-H179,H179-G179),"") ->  | K179: =IFERROR(IF(Звичайний,J179/КалоріїНаФунт,J179/КалоріїНаФунт/2.2),"") ->  | L179: =IFERROR(ВагаДляСхудненняНабору-K179,"") ->  | M179: =IFERROR(IF(B178<>"",L179/(ВагаДляСхудненняНабору),""),"") -> 
F180: =IFERROR(АктивнийBMR,"") ->  | G180: =IFERROR(IF(K179>0,F179*ФакторАктивності+IF(ЦільЩодоВаги="Підтримання",0,IF(ЦільЩодоВаги="ЗМЕНШИЛАСЯ",-500,IF(ЦільЩодоВаги="Збільшення",500))),""),"") ->  | H180: =IFERROR(F180*(ФакторАктивності),"") ->  | I180: =IFERROR(IF(ЦільЩодоВаги="Збільшення",G180-H180,H180-G180),"") ->  | K180: =IFERROR(IF(Звичайний,J180/КалоріїНаФунт,J180/КалоріїНаФунт/2.2),"") ->  | L180: =IFERROR(ВагаДляСхудненняНабору-K180,"") ->  | M180: =IFERROR(IF(B179<>"",L180/(ВагаДляСхудненняНабору),""),"") -> 
F181: =IFERROR(АктивнийBMR,"") ->  | G181: =IFERROR(IF(K180>0,F180*ФакторАктивності+IF(ЦільЩодоВаги="Підтримання",0,IF(ЦільЩодоВаги="ЗМЕНШИЛАСЯ",-500,IF(ЦільЩодоВаги="Збільшення",500))),""),"") ->  | H181: =IFERROR(F181*(ФакторАктивності),"") ->  | I181: =IFERROR(IF(ЦільЩодоВаги="Збільшення",G181-H181,H181-G181),"") ->  | K181: =IFERROR(IF(Звичайний,J181/КалоріїНаФунт,J181/КалоріїНаФунт/2.2),"") ->  | L181: =IFERROR(ВагаДляСхудненняНабору-K181,"") ->  | M181: =IFERROR(IF(B180<>"",L181/(ВагаДляСхудненняНабору),""),"") -> 
F182: =IFERROR(АктивнийBMR,"") ->  | G182: =IFERROR(IF(K181>0,F181*ФакторАктивності+IF(ЦільЩодоВаги="Підтримання",0,IF(ЦільЩодоВаги="ЗМЕНШИЛАСЯ",-500,IF(ЦільЩодоВаги="Збільшення",500))),""),"") ->  | H182: =IFERROR(F182*(ФакторАктивності),"") ->  | I182: =IFERROR(IF(ЦільЩодоВаги="Збільшення",G182-H182,H182-G182),"") ->  | K182: =IFERROR(IF(Звичайний,J182/КалоріїНаФунт,J182/КалоріїНаФунт/2.2),"") ->  | L182: =IFERROR(ВагаДляСхудненняНабору-K182,"") ->  | M182: =IFERROR(IF(B181<>"",L182/(ВагаДляСхудненняНабору),""),"") -> 
F183: =IFERROR(АктивнийBMR,"") ->  | G183: =IFERROR(IF(K182>0,F182*ФакторАктивності+IF(ЦільЩодоВаги="Підтримання",0,IF(ЦільЩодоВаги="ЗМЕНШИЛАСЯ",-500,IF(ЦільЩодоВаги="Збільшення",500))),""),"") ->  | H183: =IFERROR(F183*(ФакторАктивності),"") ->  | I183: =IFERROR(IF(ЦільЩодоВаги="Збільшення",G183-H183,H183-G183),"") ->  | K183: =IFERROR(IF(Звичайний,J183/КалоріїНаФунт,J183/КалоріїНаФунт/2.2),"") ->  | L183: =IFERROR(ВагаДляСхудненняНабору-K183,"") ->  | M183: =IFERROR(IF(B182<>"",L183/(ВагаДляСхудненняНабору),""),"") -> 
F184: =IFERROR(АктивнийBMR,"") ->  | G184: =IFERROR(IF(K183>0,F183*ФакторАктивності+IF(ЦільЩодоВаги="Підтримання",0,IF(ЦільЩодоВаги="ЗМЕНШИЛАСЯ",-500,IF(ЦільЩодоВаги="Збільшення",500))),""),"") ->  | H184: =IFERROR(F184*(ФакторАктивності),"") ->  | I184: =IFERROR(IF(ЦільЩодоВаги="Збільшення",G184-H184,H184-G184),"") ->  | K184: =IFERROR(IF(Звичайний,J184/КалоріїНаФунт,J184/КалоріїНаФунт/2.2),"") ->  | L184: =IFERROR(ВагаДляСхудненняНабору-K184,"") ->  | M184: =IFERROR(IF(B183<>"",L184/(ВагаДляСхудненняНабору),""),"") -> 
F185: =IFERROR(АктивнийBMR,"") ->  | G185: =IFERROR(IF(K184>0,F184*ФакторАктивності+IF(ЦільЩодоВаги="Підтримання",0,IF(ЦільЩодоВаги="ЗМЕНШИЛАСЯ",-500,IF(ЦільЩодоВаги="Збільшення",500))),""),"") ->  | H185: =IFERROR(F185*(ФакторАктивності),"") ->  | I185: =IFERROR(IF(ЦільЩодоВаги="Збільшення",G185-H185,H185-G185),"") ->  | K185: =IFERROR(IF(Звичайний,J185/КалоріїНаФунт,J185/КалоріїНаФунт/2.2),"") ->  | L185: =IFERROR(ВагаДляСхудненняНабору-K185,"") ->  | M185: =IFERROR(IF(B184<>"",L185/(ВагаДляСхудненняНабору),""),"") -> 
F186: =IFERROR(АктивнийBMR,"") ->  | G186: =IFERROR(IF(K185>0,F185*ФакторАктивності+IF(ЦільЩодоВаги="Підтримання",0,IF(ЦільЩодоВаги="ЗМЕНШИЛАСЯ",-500,IF(ЦільЩодоВаги="Збільшення",500))),""),"") ->  | H186: =IFERROR(F186*(ФакторАктивності),"") ->  | I186: =IFERROR(IF(ЦільЩодоВаги="Збільшення",G186-H186,H186-G186),"") ->  | K186: =IFERROR(IF(Звичайний,J186/КалоріїНаФунт,J186/КалоріїНаФунт/2.2),"") ->  | L186: =IFERROR(ВагаДляСхудненняНабору-K186,"") ->  | M186: =IFERROR(IF(B185<>"",L186/(ВагаДляСхудненняНабору),""),"") -> 
F187: =IFERROR(АктивнийBMR,"") ->  | G187: =IFERROR(IF(K186>0,F186*ФакторАктивності+IF(ЦільЩодоВаги="Підтримання",0,IF(ЦільЩодоВаги="ЗМЕНШИЛАСЯ",-500,IF(ЦільЩодоВаги="Збільшення",500))),""),"") ->  | H187: =IFERROR(F187*(ФакторАктивності),"") ->  | I187: =IFERROR(IF(ЦільЩодоВаги="Збільшення",G187-H187,H187-G187),"") ->  | K187: =IFERROR(IF(Звичайний,J187/КалоріїНаФунт,J187/КалоріїНаФунт/2.2),"") ->  | L187: =IFERROR(ВагаДляСхудненняНабору-K187,"") ->  | M187: =IFERROR(IF(B186<>"",L187/(ВагаДляСхудненняНабору),""),"") -> 
F188: =IFERROR(АктивнийBMR,"") ->  | G188: =IFERROR(IF(K187>0,F187*ФакторАктивності+IF(ЦільЩодоВаги="Підтримання",0,IF(ЦільЩодоВаги="ЗМЕНШИЛАСЯ",-500,IF(ЦільЩодоВаги="Збільшення",500))),""),"") ->  | H188: =IFERROR(F188*(ФакторАктивності),"") ->  | I188: =IFERROR(IF(ЦільЩодоВаги="Збільшення",G188-H188,H188-G188),"") ->  | K188: =IFERROR(IF(Звичайний,J188/КалоріїНаФунт,J188/КалоріїНаФунт/2.2),"") ->  | L188: =IFERROR(ВагаДляСхудненняНабору-K188,"") ->  | M188: =IFERROR(IF(B187<>"",L188/(ВагаДляСхудненняНабору),""),"") -> 
F189: =IFERROR(АктивнийBMR,"") ->  | G189: =IFERROR(IF(K188>0,F188*ФакторАктивності+IF(ЦільЩодоВаги="Підтримання",0,IF(ЦільЩодоВаги="ЗМЕНШИЛАСЯ",-500,IF(ЦільЩодоВаги="Збільшення",500))),""),"") ->  | H189: =IFERROR(F189*(ФакторАктивності),"") ->  | I189: =IFERROR(IF(ЦільЩодоВаги="Збільшення",G189-H189,H189-G189),"") ->  | K189: =IFERROR(IF(Звичайний,J189/КалоріїНаФунт,J189/КалоріїНаФунт/2.2),"") ->  | L189: =IFERROR(ВагаДляСхудненняНабору-K189,"") ->  | M189: =IFERROR(IF(B188<>"",L189/(ВагаДляСхудненняНабору),""),"") -> 
F190: =IFERROR(АктивнийBMR,"") ->  | G190: =IFERROR(IF(K189>0,F189*ФакторАктивності+IF(ЦільЩодоВаги="Підтримання",0,IF(ЦільЩодоВаги="ЗМЕНШИЛАСЯ",-500,IF(ЦільЩодоВаги="Збільшення",500))),""),"") ->  | H190: =IFERROR(F190*(ФакторАктивності),"") ->  | I190: =IFERROR(IF(ЦільЩодоВаги="Збільшення",G190-H190,H190-G190),"") ->  | K190: =IFERROR(IF(Звичайний,J190/КалоріїНаФунт,J190/КалоріїНаФунт/2.2),"") ->  | L190: =IFERROR(ВагаДляСхудненняНабору-K190,"") ->  | M190: =IFERROR(IF(B189<>"",L190/(ВагаДляСхудненняНабору),""),"") -> 
F191: =IFERROR(АктивнийBMR,"") ->  | G191: =IFERROR(IF(K190>0,F190*ФакторАктивності+IF(ЦільЩодоВаги="Підтримання",0,IF(ЦільЩодоВаги="ЗМЕНШИЛАСЯ",-500,IF(ЦільЩодоВаги="Збільшення",500))),""),"") ->  | H191: =IFERROR(F191*(ФакторАктивності),"") ->  | I191: =IFERROR(IF(ЦільЩодоВаги="Збільшення",G191-H191,H191-G191),"") ->  | K191: =IFERROR(IF(Звичайний,J191/КалоріїНаФунт,J191/КалоріїНаФунт/2.2),"") ->  | L191: =IFERROR(ВагаДляСхудненняНабору-K191,"") ->  | M191: =IFERROR(IF(B190<>"",L191/(ВагаДляСхудненняНабору),""),"") -> 
F192: =IFERROR(АктивнийBMR,"") ->  | G192: =IFERROR(IF(K191>0,F191*ФакторАктивності+IF(ЦільЩодоВаги="Підтримання",0,IF(ЦільЩодоВаги="ЗМЕНШИЛАСЯ",-500,IF(ЦільЩодоВаги="Збільшення",500))),""),"") ->  | H192: =IFERROR(F192*(ФакторАктивності),"") ->  | I192: =IFERROR(IF(ЦільЩодоВаги="Збільшення",G192-H192,H192-G192),"") ->  | K192: =IFERROR(IF(Звичайний,J192/КалоріїНаФунт,J192/КалоріїНаФунт/2.2),"") ->  | L192: =IFERROR(ВагаДляСхудненняНабору-K192,"") ->  | M192: =IFERROR(IF(B191<>"",L192/(ВагаДляСхудненняНабору),""),"") -> 
F193: =IFERROR(АктивнийBMR,"") ->  | G193: =IFERROR(IF(K192>0,F192*ФакторАктивності+IF(ЦільЩодоВаги="Підтримання",0,IF(ЦільЩодоВаги="ЗМЕНШИЛАСЯ",-500,IF(ЦільЩодоВаги="Збільшення",500))),""),"") ->  | H193: =IFERROR(F193*(ФакторАктивності),"") ->  | I193: =IFERROR(IF(ЦільЩодоВаги="Збільшення",G193-H193,H193-G193),"") ->  | K193: =IFERROR(IF(Звичайний,J193/КалоріїНаФунт,J193/КалоріїНаФунт/2.2),"") ->  | L193: =IFERROR(ВагаДляСхудненняНабору-K193,"") ->  | M193: =IFERROR(IF(B192<>"",L193/(ВагаДляСхудненняНабору),""),"") -> 
F194: =IFERROR(АктивнийBMR,"") ->  | G194: =IFERROR(IF(K193>0,F193*ФакторАктивності+IF(ЦільЩодоВаги="Підтримання",0,IF(ЦільЩодоВаги="ЗМЕНШИЛАСЯ",-500,IF(ЦільЩодоВаги="Збільшення",500))),""),"") ->  | H194: =IFERROR(F194*(ФакторАктивності),"") ->  | I194: =IFERROR(IF(ЦільЩодоВаги="Збільшення",G194-H194,H194-G194),"") ->  | K194: =IFERROR(IF(Звичайний,J194/КалоріїНаФунт,J194/КалоріїНаФунт/2.2),"") ->  | L194: =IFERROR(ВагаДляСхудненняНабору-K194,"") ->  | M194: =IFERROR(IF(B193<>"",L194/(ВагаДляСхудненняНабору),""),"") -> 
F195: =IFERROR(АктивнийBMR,"") ->  | G195: =IFERROR(IF(K194>0,F194*ФакторАктивності+IF(ЦільЩодоВаги="Підтримання",0,IF(ЦільЩодоВаги="ЗМЕНШИЛАСЯ",-500,IF(ЦільЩодоВаги="Збільшення",500))),""),"") ->  | H195: =IFERROR(F195*(ФакторАктивності),"") ->  | I195: =IFERROR(IF(ЦільЩодоВаги="Збільшення",G195-H195,H195-G195),"") ->  | K195: =IFERROR(IF(Звичайний,J195/КалоріїНаФунт,J195/КалоріїНаФунт/2.2),"") ->  | L195: =IFERROR(ВагаДляСхудненняНабору-K195,"") ->  | M195: =IFERROR(IF(B194<>"",L195/(ВагаДляСхудненняНабору),""),"") -> 
F196: =IFERROR(АктивнийBMR,"") ->  | G196: =IFERROR(IF(K195>0,F195*ФакторАктивності+IF(ЦільЩодоВаги="Підтримання",0,IF(ЦільЩодоВаги="ЗМЕНШИЛАСЯ",-500,IF(ЦільЩодоВаги="Збільшення",500))),""),"") ->  | H196: =IFERROR(F196*(ФакторАктивності),"") ->  | I196: =IFERROR(IF(ЦільЩодоВаги="Збільшення",G196-H196,H196-G196),"") ->  | K196: =IFERROR(IF(Звичайний,J196/КалоріїНаФунт,J196/КалоріїНаФунт/2.2),"") ->  | L196: =IFERROR(ВагаДляСхудненняНабору-K196,"") ->  | M196: =IFERROR(IF(B195<>"",L196/(ВагаДляСхудненняНабору),""),"") -> 
F197: =IFERROR(АктивнийBMR,"") ->  | G197: =IFERROR(IF(K196>0,F196*ФакторАктивності+IF(ЦільЩодоВаги="Підтримання",0,IF(ЦільЩодоВаги="ЗМЕНШИЛАСЯ",-500,IF(ЦільЩодоВаги="Збільшення",500))),""),"") ->  | H197: =IFERROR(F197*(ФакторАктивності),"") ->  | I197: =IFERROR(IF(ЦільЩодоВаги="Збільшення",G197-H197,H197-G197),"") ->  | K197: =IFERROR(IF(Звичайний,J197/КалоріїНаФунт,J197/КалоріїНаФунт/2.2),"") ->  | L197: =IFERROR(ВагаДляСхудненняНабору-K197,"") ->  | M197: =IFERROR(IF(B196<>"",L197/(ВагаДляСхудненняНабору),""),"") -> 
F198: =IFERROR(АктивнийBMR,"") ->  | G198: =IFERROR(IF(K197>0,F197*ФакторАктивності+IF(ЦільЩодоВаги="Підтримання",0,IF(ЦільЩодоВаги="ЗМЕНШИЛАСЯ",-500,IF(ЦільЩодоВаги="Збільшення",500))),""),"") ->  | H198: =IFERROR(F198*(ФакторАктивності),"") ->  | I198: =IFERROR(IF(ЦільЩодоВаги="Збільшення",G198-H198,H198-G198),"") ->  | K198: =IFERROR(IF(Звичайний,J198/КалоріїНаФунт,J198/КалоріїНаФунт/2.2),"") ->  | L198: =IFERROR(ВагаДляСхудненняНабору-K198,"") ->  | M198: =IFERROR(IF(B197<>"",L198/(ВагаДляСхудненняНабору),""),"") -> 
F199: =IFERROR(АктивнийBMR,"") ->  | G199: =IFERROR(IF(K198>0,F198*ФакторАктивності+IF(ЦільЩодоВаги="Підтримання",0,IF(ЦільЩодоВаги="ЗМЕНШИЛАСЯ",-500,IF(ЦільЩодоВаги="Збільшення",500))),""),"") ->  | H199: =IFERROR(F199*(ФакторАктивності),"") ->  | I199: =IFERROR(IF(ЦільЩодоВаги="Збільшення",G199-H199,H199-G199),"") ->  | K199: =IFERROR(IF(Звичайний,J199/КалоріїНаФунт,J199/КалоріїНаФунт/2.2),"") ->  | L199: =IFERROR(ВагаДляСхудненняНабору-K199,"") ->  | M199: =IFERROR(IF(B198<>"",L199/(ВагаДляСхудненняНабору),""),"") -> 
F200: =IFERROR(АктивнийBMR,"") ->  | G200: =IFERROR(IF(K199>0,F199*ФакторАктивності+IF(ЦільЩодоВаги="Підтримання",0,IF(ЦільЩодоВаги="ЗМЕНШИЛАСЯ",-500,IF(ЦільЩодоВаги="Збільшення",500))),""),"") ->  | H200: =IFERROR(F200*(ФакторАктивності),"") ->  | I200: =IFERROR(IF(ЦільЩодоВаги="Збільшення",G200-H200,H200-G200),"") ->  | K200: =IFERROR(IF(Звичайний,J200/КалоріїНаФунт,J200/КалоріїНаФунт/2.2),"") ->  | L200: =IFERROR(ВагаДляСхудненняНабору-K200,"") ->  | M200: =IFERROR(IF(B199<>"",L200/(ВагаДляСхудненняНабору),""),"") -> 
... 798 more rows

Sheet Підстановка типу вправ (hidden)
B1: Підстановка типу вправ
B2: Цей аркуш має бути прихований.
B3: ТИП ВПРАВ | C3: ОПИС | D3: ЧИННИК
B4: СИДЯЧИЙ | C4: ВПРАВ МАЛО АБО НЕМАЄ ВЗАГАЛІ | D4: 1.2
B5: НЕЗНАЧНА АКТИВНІСТЬ | C5: ВПРАВИ 1–2 ДНІ НА ТИЖДЕНЬ | D5: 1.375
B6: ПОМІРНА АКТИВНІСТЬ | C6: ВПРАВИ 3–5 ДНІВ НА ТИЖДЕНЬ | D6: 1.55
B7: ЗНАЧНА АКТИВНІСТЬ | C7: ВПРАВИ 6–7 ДНІВ НА ТИЖДЕНЬ | D7: 1.725
B8: НАДВИСОКА АКТИВНІСТЬ | C8: ВПРАВИ 6–7 ДНІВ/ТИЖДЕНЬ + ФІЗИЧНА РОБОТА/ПОДВІЙНЕ НАВАНТАЖЕННЯ | D8: 1.9
